Workbook

Sheet Unternehmensdaten
A1: Eingabeblatt für Unternehmensdaten
A3: Name des Unternehmens
A5: Unternehmensstandort/Ort der Leistungserbringung | B5: Wien
A7: Art des Unternehmens | B7: Ein Personen Unternehmen
A9: Gesamt-Umsatz in EUR/Jahr
A11: Anzahl Mitarbeiter gesamt | C11: Anzahl
A12: davon Mitarbeiter > 25 Jahre im Unternehmen (6 Wochen Urlaub) | C12: Anzahl
A13: Anzahl der Mitarbeiter > 25 Jahre im Unternehmen in % | B13: =IF(ISERROR(B12/B11),"",B12/B11) ->  | C13: in %
A14: Unternehmensindividueller %-Aufschlag für NLZ | B14: =IF(ISERROR('Übersicht LZ_NLZ'!F28*(1-Unternehmensdaten!B13)+'Übersicht LZ_NLZ'!H28*Unternehmensdaten!B13),"",'Übersicht LZ_NLZ'!F28*(1-Unternehmensdaten!B13)+'Übersicht LZ_NLZ'!H28*Unternehmensdaten!B13) -> 
A16: Anzahl Mitarbeiter in Abfertigung ALT | C16: Anzahl
A17: Individueller % Aufschlag für Abfertigungsvorsorge | B17: =IF(ISERROR((B16/B11)*'Österreichische Werte'!F64+((Unternehmensdaten!B11-Unternehmensdaten!B16)/Unternehmensdaten!B11)*1.53%),"",(B16/B11)*'Österreichische Werte'!F64+((Unternehmensdaten!B11-Unternehmensdaten!B16)/Unternehmensdaten!B11)*1.53%) -> 
A19: Feiertage | B19: langjähriger Durchschnitt
A21: Kostenstruktur (Kosten jeweils PRO JAHR)
A22: Aufwendungen für Material und sonstige bezogene Leistungen
A23: Materialkosten und sonstige bezogene Leistungen (Subunternehmerkosten) | C23: =IF(ISERROR(B23/$B$32),"Lohnsumme fehlt!",B23/$B$32) -> Lohnsumme fehlt!
A24: Maschinen & Geräte (inkl. AFA, Reparaturaufwand, GeWiGü) | C24: =IF(ISERROR(B24/$B$32),"Lohnsumme fehlt!",B24/$B$32) -> Lohnsumme fehlt!
A26: Präventivdienste (SFK, AM) | D26: =IF(ISBLANK(B26),"",IF(AND(B11>=50,B26<('Österreichische Werte'!G39/2)),"ACHTUNG: Wert überprüfen!",IF(AND(B11<50,B26<('Österreichische Werte'!G39/4)),"ACHTUNG: Wert überprüfen!",""))) -> 
A27: Kosten für Persönliche Schutzausrüstung (PSA)
A28: Kosten für Arbeitskleidung
A29: Kosten für Arbeitnehmerschutz (SFK, AM, PSA) in % von Bruttolohn | B29: =IF(OR(B26=0,B26=""),IF(B11>=50,'Österreichische Werte'!G39,'Österreichische Werte'!G39/2),B26)+B27+B28 -> 0 | C29: =IF(ISERROR(B29/B32),"Lohnsumme fehlt!",B29/B32) -> Lohnsumme fehlt!
A31: Personalaufwand
A32: Brutto Lohnsumme (Leistungs- und Nichtleistungslöhne) | C32: in % vom Lohn
A33: Kranklöhne | C33: =IF(ISERROR(B33/$B$32),"Lohnsumme fehlt!",B33/$B$32) -> Lohnsumme fehlt!
A34: Krankenstand in Tagen (tatsächlicher kalkulatorischer Wert) | B34: =IF(ISERROR(('Übersicht LZ_NLZ'!E16*(1-Unternehmensdaten!B13)+'Übersicht LZ_NLZ'!G16*Unternehmensdaten!B13)*C33),"Lohnsumme oder Anzahl Mitarbeiter fehlt!",('Übersicht LZ_NLZ'!E16*(1-Unternehmensdaten!B13)+'Übersicht LZ_NLZ'!G16*Unternehmensdaten!B13)*C33) -> Lohnsumme oder Anzahl Mitarbeiter fehlt!
A36: Krankenstandstage (Wert für Kalkulation) | C36: Tage | D36: =IF(ISBLANK(B36),"",IF(B36<7,"ACHTUNG: Wert überprüfen!","")) -> 
A37: Sonstige Arbeitsverhinderungen in Arbeitstagen | C37: Tage
A38: Sonstige Fehlzeiten und nicht verrechenbare Einsatzzeiten | C38: =IF(ISERROR(B38/$B$32),"Lohnsumme fehlt!",B38/$B$32) -> Lohnsumme fehlt!
A40: Dienstgeberabgabe (U-Bahnsteuer; nur in Wien) | B40: =IF(B5="Wien",B11*'Österreichische Werte'!E27,0) -> 0 | C40: =IF(ISERROR(B40/B32),"Lohnsumme fehlt!",B40/B32) -> Lohnsumme fehlt!
A41: Benötigte einzustellende begünstigt Behinderte | B41: =ROUNDDOWN(IF(B11>=25,B11/25,0),0) -> 0 | C41: Anzahl
A42: davon eingestellt | C42: Anzahl
A43: Behindertenausgleichstaxe | B43: =IF(B42>B41,0,(B41-B42)*'Österreichische Werte'!F7) -> 0 | C43: =IF(ISERROR(IF(B42>B41,0,B43/B32)),"Lohnsumme fehlt!",IF(B42>B41,0,B43/B32)) -> Lohnsumme fehlt!
A45: Fahrtkostenersatz (Gesamtsumme in EUR) | C45: =IF(ISERROR(B45/$B$32),"Lohnsumme fehlt!",B45/$B$32) -> Lohnsumme fehlt!
A47: Kosten für Objektleiter (Bruttokosten inkl. Nebenkosten pro Jahr) | C47: =IF(ISERROR(B47/$B$32),"Lohnsumme fehlt!",B47/$B$32) -> Lohnsumme fehlt!
A49: Filialkosten
A50: Kosten für eine Filiale (Miete, Betriebskosen, Personal, Material, ..) | C50: =IF(ISERROR(B50/B32),"Lohnsumme fehlt!",B50/B32) -> Lohnsumme fehlt!
C52: in % vom Lohn
A53: Sonstigen Kosten/Gemeinkosten, Risiko & Gewinn: | B53: =IF(ISBLANK(B54),SUM(B56:B74),B54) -> 0 | C53: =IF(ISERROR(B53/$B$32),"Lohnsumme fehlt!",B53/$B$32) -> Lohnsumme fehlt!
A54: Gesamteingabe aller Kosten:
A55: Detaileingabe:
A56: KfZ-Aufwand (Fuhrpark inkl. Finanzierungskosten, Leasing und Betrieb)
A57: Reise und Fahrtkosten (nicht Fahrtkostenersatz)
A58: Telekommunikation & EDV (Telefon, Internet, IT, …)
A59: Raummieten (Büro) inkl. Betriebskosten
A60: Mietaufwand für Maschinen und Geräte
A61: Leasingaufwand (nicht für Fuhrpark)
A62: Provisionen an Dritte, Vermittlungsgebühren, Honorare
A63: Büromaterial und Drucksorten
A64: Fachliteratur und Zeitungen
A65: Werbung und Repräsentation (Marketing, Vertrieb, …)
A66: Versicherungen und Schadensfälle (Prämien und Schadenszahlungen)
A67: Beratungs- und Prüfungsaufwand (Steuerberatung, WP, RA, Unternehmensberatung, …)
A68: Aus- und Weiterbildungskosten
A69: Mitgliedsbeiträge (Kammerumlage, sonstige Beiträge)
A70: Verwaltungskosten (Gehälter Innendienst, inkl. GF) - Bruttokosten inkl. Lohnnebenkosten
A71: Kosten für Vorabeiter
A72: Zinszahlungen
A73: Freiwilliger Sozialaufwand (zB Weihnachtsfeier, …)
A74: Sonstige Kosten des Unternehmens
A76: Risikoaufschlag (Unternehmerisches Wagnis in Prozent)
A77: Gewinnerwartung (in Prozent)
A80: Ist das Unternehmen DFG oder Hausbetreuer? | B80: ja
A82: Version 2.11
A83: Stand per 20.02.2022
A84: Geändert durch: PF

Sheet Kalkulation
A1: Kalkulation für Stundenverrechnungssätze für Denkmal-, Fassaden- und Gebäudereiniger | F1: EUR/Std pro Lohngruppe
F2: LG1 | G2: LG2 | H2: LG3 | I2: LG4 | J2: LG5 | K2: LG6 | L2: Freie LV | N2: LV = Lohnvereinbarung
A3: A | B3: Kollektivlohn | E3: 1 | F3: ='KV Daten DFG 2022'!C2 -> 11.74 | G3: ='KV Daten DFG 2022'!C3 -> 10.66 | H3: ='KV Daten DFG 2022'!C4 -> 10.4 | I3: ='KV Daten DFG 2022'!C5 -> 10.1 | J3: ='KV Daten DFG 2022'!C6 -> 9.84 | K3: ='KV Daten DFG 2022'!C7 -> 9.71
A4: B | B4: Nebenkosten für Nichtanwesenheitszeiten Feiertage, Urlaub, Krankenentgelt, sonstige Verhinderungen | E4: =IF(ISBLANK(Unternehmensdaten!B12),'Übersicht LZ_NLZ'!F35,Unternehmensdaten!B14) -> 0.240876458 | F4: =F3*$E$4 -> 2.827889617 | G4: =G3*$E$4 -> 2.567743042 | H4: 2.505115163 | I4: 2.432852225 | J4: 2.370224346 | K4: 2.338910407 | L4: 0
C6: Summe Pos. B | E6: =SUM(E4:E4) -> 0.240876458 | F6: =SUM(F4:F4) -> 2.827889617 | G6: =SUM(G4:G4) -> 2.567743042 | H6: 2.505115163 | I6: 2.432852225 | J6: 2.370224346 | K6: 2.338910407 | L6: 0
A8: C | B8: Sozialversicherungsabgaben und sonstige Sozialabgaben von A und B
B9: Pensionsversicherung | D9: ='Österreichische Werte'!B78 -> 0.1255
B10: Unfallversicherung | D10: ='Österreichische Werte'!B79 -> 0.012
B11: Krankenversicherung | D11: ='Österreichische Werte'!B80 -> 0.0378
B12: Arbeitslosenversicherung und IESG Zuschlag | D12: ='Österreichische Werte'!B81+'Österreichische Werte'!B82 -> 0.031
B13: Wohnbauförderung | D13: ='Österreichische Werte'!B83 -> 0.005
B14: Sozialversicherungsbeiträge gesamt | D14: =SUM(D9:D13) -> 0.2113
B15: Dienstgeberbeitrag (DB) Familienlastenausgleichsfonds | D15: ='Österreichische Werte'!B85 -> 0.039
B16: Dienstgeberzuschlag (DZ) | D16: =VLOOKUP(Unternehmensdaten!B5,DZ_1,2,1) -> 0.0038
B17: Kommunalsteuer | D17: ='Österreichische Werte'!B87 -> 0.03
B18: Beitrag zum Sozialfonds der DFG | D18: =IF(Unternehmensdaten!B80="ja",'Österreichische Werte'!B97,) -> 0.002
B19: Summe Pos. C | D19: =SUM(D14:D18) -> 0.2861
A20: =D19 -> 0.2861 | B20: von Summe A + B | E20: =F20/$F$3 -> 0.3550147546 | F20: =(F3+F6)*$A$20 -> 4.167873219 | G20: 3.784457284 | H20: 3.692153448 | I20: 3.585649022 | J20: 3.493345186 | K20: 3.447193267 | L20: 0
C22: Summe Pos. B + C | E22: =SUM(E6:E21) -> 0.5958912126 | F22: =F3*$E$22 -> 6.995762836 | G22: 6.352200326 | H22: 6.197268611 | I22: 6.018501247 | J22: 5.863569532 | K22: 5.786103674 | L22: 0
A24: D | B24: Sonderzahlungen
B25: Weihnachtsremuneration (WR) | D25: =1/12 -> 0.08333333333
B26: Urlaubszuschuss (UZ) | D26: =1/12 -> 0.08333333333
D27: =SUM(D25:D26) -> 0.1666666667
A28: =D27 -> 0.1666666667 | B28: von Summe A + B | E28: =F28/$F$3 -> 0.206812743 | F28: =(F3+F4)*$A$28 -> 2.427981603 | G28: 2.20462384 | H28: 2.150852527 | I28: 2.088808704 | J28: 2.035037391 | K28: 2.008151734 | L28: 0
C30: Summe Pos. B + C + D | E30: =SUM(E22:E29) -> 0.8027039556 | F30: =F3*$E$30 -> 9.423744439 | G30: 8.556824167 | H30: 8.348121138 | I30: 8.107309951 | J30: 7.898606923 | K30: 7.794255409 | L30: 0
A32: E | B32: Sozialversicherungsabgaben und sonstige Sozialabgaben von D
B33: Pensionsversicherung | D33: ='Österreichische Werte'!B78 -> 0.1255
B34: Unfallversicherung | D34: ='Österreichische Werte'!B79 -> 0.012
B35: Krankenversicherung | D35: ='Österreichische Werte'!B80 -> 0.0378
B36: Arbeitslosenversicherung und IESG Zuschlag | D36: ='Österreichische Werte'!B81+'Österreichische Werte'!B82 -> 0.031
B37: Sozialabgaben | D37: =SUM(D33:D36) -> 0.2063
B38: Dienstgeberbeitrag (DB) Familienlastenausgleichsfonds | D38: ='Österreichische Werte'!B85 -> 0.039
B39: Dienstgeberzuschlag (DZ) | D39: =D16 -> 0.0038
B40: Kommunalsteuer | D40: ='Österreichische Werte'!B87 -> 0.03
B41: Beitrag zum Sozialfonds der DFG | D41: =IF(Unternehmensdaten!B80="ja",'Österreichische Werte'!B97,) -> 0.002
B42: Summe Pos. E | D42: =SUM(D37:D41) -> 0.2811
A43: =D42 -> 0.2811 | B43: von Summe D | E43: =F43/$F$3 -> 0.05813506206 | F43: =F28*$A$43 -> 0.6825056285 | G43: 0.6197197615 | H43: 0.6046046454 | I43: 0.5871641268 | J43: 0.5720490106 | K43: 0.5644914526 | L43: 0
C45: Summe Pos. B + C + D + E | E45: =SUM(E30:E44) -> 0.8608390176 | F45: =F3*$E$45 -> 10.10625007 | G45: 9.176543928 | H45: 8.952725783 | I45: 8.694474078 | J45: 8.470655934 | K45: 8.358746861 | L45: 0
A47: F | B47: Abfertigungsvorsorge
B48: Abfertigungsvorsorge alt und NEU | D48: =IF(Unternehmensdaten!B17="",'Österreichische Werte'!B49,Unternehmensdaten!B17) -> 0.0153
A49: =D48 -> 0.0153 | B49: von Summe A + B | E49: =F49/F3 -> 0.02214964477 | F49: =(F3+F4+F28)*$A$49 -> 0.2600368297 | G49: =(G3+G4+G28)*$A$49 -> 0.2361152133 | H49: 0.2303563057 | I49: 0.2237114122 | J49: 0.2179525046 | K49: 0.2150730508 | L49: 0
C51: Summe Pos. B + C + D + E + F | E51: =SUM(E45:E50) -> 0.8829886624 | F51: =F3*$E$51 -> 10.3662869 | G51: =G3*$E$51 -> 9.412659141 | H51: 9.183082089 | I51: 8.91818549 | J51: 8.688608438 | K51: 8.573819912 | L51: 0
B53: Basis für Zuschläge | F53: =F51+F3 -> 22.1062869 | G53: =G51+G3 -> 20.07265914 | H53: 19.58308209 | I53: 19.01818549 | J53: 18.52860844 | K53: 18.28381991 | L53: 0
A55: G | B55: Sonstige lohnbezogene Abgaben und Kosten
B56: Fahrtkostenersatz DN | D56: =IF(OR(ISERROR(IF(Unternehmensdaten!C45=0,'Statistische Daten'!H59,Unternehmensdaten!C45)),Unternehmensdaten!C45="Lohnsumme fehlt!"),'Statistische Daten'!H59,IF(Unternehmensdaten!C45=0,'Statistische Daten'!H59,Unternehmensdaten!C45)) -> 0
B57: Behindertenausgleichstaxe | D57: =IF(OR(ISERROR(IF(Unternehmensdaten!B41=Unternehmensdaten!B42,0,IF(Unternehmensdaten!B11>25,Unternehmensdaten!C43,0))),Unternehmensdaten!C43="Lohnsumme fehlt!"),'Statistische Daten'!H60,IF(Unternehmensdaten!B41=Unternehmensdaten!B42,0,IF(Unternehmensdaten!B11>25,Unternehmensdaten!C43,0))) -> 0
B58: Dienstgeberabgabe Ubahnsteuer (nur in Wien) | D58: =IF(OR(ISERROR(IF(Unternehmensdaten!B5="Wien",IF(Unternehmensdaten!C40=0,'Statistische Daten'!H61,Unternehmensdaten!C40),0)),Unternehmensdaten!C40="Lohnsumme fehlt!"),'Statistische Daten'!H61,IF(Unternehmensdaten!B5="Wien",IF(Unternehmensdaten!C40=0,'Statistische Daten'!H61,Unternehmensdaten!C40),0)) -> 0.007
B59: Kosten für Arbeitnehmerschutz (Präventivdienste und PSA) | D59: =IF(OR(ISERROR(IF(Unternehmensdaten!C29=0,IF(Unternehmensdaten!B11>=50,'Österreichische Werte'!H39,'Österreichische Werte'!H39/2),Unternehmensdaten!C29)),Unternehmensdaten!C29="Lohnsumme fehlt!"),IF(Unternehmensdaten!B11>=50,'Statistische Daten'!H63,'Statistische Daten'!H63/2),IF(Unternehmensdaten!C29=0,IF(Unternehmensdaten!B11>=50,'Österreichische Werte'!H39,'Österreichische Werte'!H39/2),Unternehmensdaten!C29)) -> 0
B60: Summe Pos. G | D60: =SUM(D56:D59) -> 0.007
A61: =D60 -> 0.007 | B61: von Summe A + B (Lohnsumme) | E61: =F61/$F$3 -> 0.008686135206 | F61: =$A$61*(F3+F4) -> 0.1019752273 | G61: 0.09259420129 | H61: 0.09033580614 | I61: 0.08772996558 | J61: 0.08547157042 | K61: 0.08434237285 | L61: 0
C63: Summe Pos. B + C + D + E + F + G | E63: =SUM(E51:E62) -> 0.8916747976 | F63: =F3*$E$63 -> 10.46826212 | G63: 9.505253343 | H63: 9.273417895 | I63: 9.005915456 | J63: 8.774080009 | K63: 8.658162285 | L63: 0
B65: Personaleinstandskosten | C65: Aufschlag auf Lohngruppe | D65: =E63 -> 0.8916747976 | F65: =F63+F3 -> 22.20826212 | G65: 20.16525334 | H65: 19.6734179 | I65: 19.10591546 | J65: 18.61408001 | K65: 18.36816228 | L65: 0
A67: H | B67: Sonstige Kosten des Unternehmens
B68: Materialkosten (Roh-, Hilfs- und Betriebsstoffe) | D68: =IF(OR(ISERROR(IF(Unternehmensdaten!C23=0,'Statistische Daten'!H64,Unternehmensdaten!C23)),Unternehmensdaten!C23="Lohnsumme fehlt!"),'Statistische Daten'!H64,IF(Unternehmensdaten!C23=0,'Statistische Daten'!H64,Unternehmensdaten!C23)) -> 0.1111520625
B69: Gerätekosten (AfA für Maschinen und Geräte, GeWiGü, Reparaturen) | D69: =IF(OR(ISERROR(IF(Unternehmensdaten!C24=0,0,Unternehmensdaten!C24)),Unternehmensdaten!C24="Lohnsumme fehlt!"),0,IF(Unternehmensdaten!C24=0,0,Unternehmensdaten!C24)) -> 0
B70: Objektleiterkosten | D70: =IF(OR(ISERROR(IF(Unternehmensdaten!C47=0,'Statistische Daten'!H66,Unternehmensdaten!C47)),Unternehmensdaten!C47="Lohnsumme fehlt!"),'Statistische Daten'!H66,IF(Unternehmensdaten!C47=0,'Statistische Daten'!H66,Unternehmensdaten!C47)) -> 0
B71: Filialkosten | D71: =IF(OR(ISERROR(IF(Unternehmensdaten!C50=0,0,Unternehmensdaten!C50)),Unternehmensdaten!C50="Lohnsumme fehlt!"),0,IF(Unternehmensdaten!C50=0,0,Unternehmensdaten!C50)) -> 0
B72: Gemeinkosten | D72: =IF(OR(ISERROR(IF(Unternehmensdaten!C53=0,'Statistische Daten'!H65,Unternehmensdaten!C53)),Unternehmensdaten!C53="Lohnsumme fehlt!"),'Statistische Daten'!H65,IF(Unternehmensdaten!C53=0,'Statistische Daten'!H65,Unternehmensdaten!C53)) -> 0.5242726291
A73: =D73 -> 0.6354246916 | B73: Summe Pos. H | D73: =SUM(D68:D72) -> 0.6354246916 | E73: =F73/F3 -> 0.7884835406 | F73: =(F3+F4)*$A$73 -> 9.256796767 | G73: 8.405234543 | H73: 8.200228823 | I73: 7.96368376 | J73: 7.75867804 | K73: 7.65617518 | L73: 0
C75: Summe Pos. B + C + D + E + F + G + H | E75: =SUM(E63:E74) -> 1.680158338 | F75: =F3*$E$75 -> 19.72505889 | G75: 17.91048789 | H75: 17.47364672 | I75: 16.96959922 | J75: 16.53275805 | K75: 16.31433746 | L75: 0
B77: Summe Unternehmenskosten (= Stundensatz zur Vollkostendeckung) | F77: =F3+F75 -> 31.46505889 | G77: 28.57048789 | H77: 27.87364672 | I77: 27.06959922 | J77: 26.37275805 | K77: 26.02433746 | L77: 0
A79: I | B79: Risiko & Gewinn
B80: Unternehmerrisiko | D80: =IF(ISBLANK(Unternehmensdaten!B76),'Statistische Daten'!E8,Unternehmensdaten!B76) -> 0.015
B81: Gewinn | D81: =IF(ISBLANK(Unternehmensdaten!B77),'Statistische Daten'!E9,Unternehmensdaten!B77) -> 0.05
A82: =D82 -> 0.065 | B82: Summe Pos. I | D82: =SUM(D80:D81) -> 0.065 | E82: =F82/F3 -> 0.174210292 | F82: =F77*$A$82 -> 2.045228828 | G82: =G77*$A$82 -> 1.857081713 | H82: 1.811787037 | I82: 1.759523949 | J82: 1.714229273 | K82: 1.691581935 | L82: 0
C84: Summe Pos. B + C + D + E + F + G + H + I | E84: =SUM(E75:E83) -> 1.85436863 | F84: =F3*$E$84 -> 21.77028772 | G84: 19.7675696 | H84: 19.28543375 | I84: 18.72912317 | J84: 18.24698732 | K84: 18.0059194 | L84: 0
B87: Stundenverrechnungssatz zu Vollkosten inkl. Gewinn | F87: =F3+F84 -> 33.51028772 | G87: 30.4275696 | H87: 29.68543375 | I87: 28.82912317 | J87: 28.08698732 | K87: 27.7159194 | L87: 0
B89: Zuschläge im Reinigungsgewerbe gem. KV § 10:
B90: Mehrarbeitsstunde (Abs. 6a) | C90: 0.25 | F90: =(1+$C90)*F$53+F$61+F$73+F$82 -> 39.03685944 | G90: 35.44573438 | H90: 34.58120428 | I90: 33.58366954 | J90: 32.71913943 | K90: 32.28687438 | L90: 0
B91: Überstunde (Abs. 6b) Nachtstunde 21 bis 6 Uhr (Abs. 7a) | C91: 0.5 | F91: 44.56343117 | G91: 40.46389917 | H91: 39.4769748 | I91: 38.33821591 | J91: 37.35129154 | K91: 36.85782936 | L91: 0
B92: Überstunde, 11. und 12. Stunde (Abs. 6c) Nachtmehrarbeitsstunde 21 bis 6 Uhr (Abs. 7b) | C92: 0.75 | F92: 50.09000289 | G92: 45.48206395 | H92: 44.37274532 | I92: 43.09276228 | J92: 41.98344365 | K92: 41.42878433 | L92: 0
B93: Sonntagsnormalarbeitsstunde (mind. 2 Std; Abs. 8a) Normalstunde inkl. Feiertagsarbeitsentgelt (mind. 2 Std; Abs. 10a) | C93: 1 | F93: 55.61657462 | G93: 50.50022874 | H93: 49.26851584 | I93: 47.84730866 | J93: 46.61559576 | K93: 45.99973931 | L93: 0
B95: Zusammentreffen mehrerer Zuschläge gem. KV:
B96: Nachtüberstunde an einem Wochentag (nicht Feiertag) (Abs. 7d) | C96: 1 | F96: =(1+$C96)*F$53+F$61+F$73+F$82 -> 55.61657462 | G96: 50.50022874 | H96: 49.26851584 | I96: 47.84730866 | J96: 46.61559576 | K96: 45.99973931 | L96: 0
B97: Nachtmehrarbeitsstunde bei neuerlichem Beginn (mind. 2 Std, Abs. 7c) Nachtüberstunde 21 bis 6 Uhr, 11. und 12. Stunde (Abs. 7e) Sonntagmehrarbeitsstunde (mind. 2 Std, Abs. 8b) | C97: 1.25 | F97: 61.14314634 | G97: 55.51839353 | H97: 54.16428637 | I97: 52.60185503 | J97: 51.24774787 | K97: 50.57069429 | L97: 0
B98: Nachtüberstunde bei neuerlichem Beginn (mind. 2 Std; Abs. 7f) Sonntagüberstunde (mind. 2 Std; Abs. 8c) Sonntagnachtstunde 21 Uhr bis 6 Uhr (mind. 2 Std; Abs. 9a) Stunde inkl. Feiertagsmehrarbeitsstunde (mind. 2 Std; Abs. 10b) Stunde inkl. Feiertagsarbeitsentgelt in der Nacht (mind. 2 Std; Abs. 11a) | C98: 1.5 | F98: 66.66971806 | G98: 60.53655831 | H98: 59.06005689 | I98: 57.3564014 | J98: 55.87989998 | K98: 55.14164927 | L98: 0
B99: Nachtüberstunde bei neuerlichem Beginn, 11. und 12. Stunde (mind. 2 Std; Abs. 7g) Sonntagüberstunde, 11. und 12. Stunde (mind. 2 Std, Abs. 8d) Sonntagnachtmehrarbeitsstunde 21 bis 6 Uhr (mind. 2 Std; Abs. 9b) | C99: 1.75 | F99: 72.19628979 | G99: 65.5547231 | H99: 63.95582741 | I99: 62.11094777 | J99: 60.51205209 | K99: 59.71260425 | L99: 0
B100: Sonntagnachtmehrarbeitsstunde bei neuerlichem Beginn (mind. 2 Std; Abs. 9c) Sonntagnachtüberstunde (mind. 2 Std, Abs. 9d) Sonntagnachtüberstunde, 11. und 12. Stunde (mind. 2 Std; Abs. 9e) Sonntagnachtüberstunde bei neuerlichem Beginn (mind. 2 Std; Abs. 9f) Sonntagnachtüberstunde bei neuerlichem Beginn, 11. und 12. Stunde (mind. 2 Std; Abs. 9g) Stunde inkl. Feiertagsüberstunde (mind. 2 Std; Abs. 10c) Stunde inkl. Feiertagsmehrarbeitsstunde in der Nacht (mind. 2 Std; Abs. 11b) | C100: 2 | F100: 77.72286151 | G100: 70.57288788 | H100: 68.85159793 | I100: 66.86549415 | J100: 65.1442042 | K100: 64.28355922 | L100: 0
B101: Stunde inkl. Feiertagsüberstunde, 11. und 12. Stunde (mind. 2 Std; Abs. 10d) | C101: 2.25 | F101: 83.24943324 | G101: 75.59105267 | H101: 73.74736846 | I101: 71.62004052 | J101: 69.77635631 | K101: 68.8545142 | L101: 0
B102: Stunde inkl. Feiertagsmehrarbeitsstunde in der Nacht bei neuerlichem Beginn (mind. 2 Std; Abs. 11c) Stunde inkl. Feiertagsüberstunde in der Nacht (mind. 2 Std; Abs. 11d) | C102: 2.5 | F102: 88.77600496 | G102: 80.60921745 | H102: 78.64313898 | I102: 76.37458689 | J102: 74.40850842 | K102: 73.42546918 | L102: 0
B103: Stunde inkl. Feiertagsüberstunde in der Nacht, 11. und 12. Stunde (mind. 2 Std; Abs. 11e) Stunde inkl. Feiertagsüberstunde in der Nacht bei neuerlichem Beginn (mind. 2 Std; Abs. 11f) Stunde inkl. Feiertagsüberstunde in der Nacht bei neuerlichem Beginn, 11. und 12. Stunde (mind. 2 Std; Abs. 11g) | C103: 2.75 | F103: 94.30257669 | G103: 85.62738224 | H103: 83.5389095 | I103: 81.12913326 | J103: 79.04066053 | K103: 77.99642416 | L103: 0
B105: Nur für Lohngruppe 3 (Hotelreinigung)
B106: Sonntagmehrarbeitsstunde (mind. 2 Std; Abs. 8e) | C106: 0.25 | F106: =(1+$C106)*F$53+F$61+F$73+F$82 -> 39.03685944 | G106: 35.44573438 | H106: 34.58120428 | I106: 33.58366954 | J106: 32.71913943 | K106: 32.28687438 | L106: 0
B107: Sonntagüberstunde (mind. 2 Std; Abs. 8f) Sonntagnachtstunde 21 bis 6 Uhr (mind. 2 Std; Abs. 9h) | C107: 0.5 | F107: 44.56343117 | G107: 40.46389917 | H107: 39.4769748 | I107: 38.33821591 | J107: 37.35129154 | K107: 36.85782936 | L107: 0
B108: Sonntagüberstunde, 11. und 12. Stunde (mind. 2 Std; Abs. 8g) Sonntagnachtmehrarbeitsstunde 21 bis 6 Uhr (mind. 2 Std; 9i) | C108: 0.75 | F108: 50.09000289 | G108: 45.48206395 | H108: 44.37274532 | I108: 43.09276228 | J108: 41.98344365 | K108: 41.42878433 | L108: 0
B109: Sonntagnachtüberstunde 21 bis 6 Uhr (mind. 2 Std; Abs. 9k) | C109: 1 | F109: 55.61657462 | G109: 50.50022874 | H109: 49.26851584 | I109: 47.84730866 | J109: 46.61559576 | K109: 45.99973931 | L109: 0
B110: Sonntagnachtmehrarbeitsstunde bei neuerlichem Beginn (mind. 2 Std; 9j) Sonntagnachtüberstunde, 11. und 12. Stunde (mind. 2 Std; Abs. 9l) | C110: 1.25 | F110: 61.14314634 | G110: 55.51839353 | H110: 54.16428637 | I110: 52.60185503 | J110: 51.24774787 | K110: 50.57069429 | L110: 0
B111: Sonntagnachtüberstunde bei neuerlichem Beginn (mind. 2 Std; Abs. 9m) | C111: 1.5 | F111: 66.66971806 | G111: 60.53655831 | H111: 59.06005689 | I111: 57.3564014 | J111: 55.87989998 | K111: 55.14164927 | L111: 0
B112: Sonntagnachtüberstunde bei neuerlichem Beginn, 11. und 12. Stunde (mind. 2 Std; Abs. 9n) | C112: 1.75 | F112: 72.19628979 | G112: 65.5547231 | H112: 63.95582741 | I112: 62.11094777 | J112: 60.51205209 | K112: 59.71260425 | L112: 0

Sheet Übersicht LZ_NLZ
B1: Ausgangsdaten | D1: Kal.Tage/Jahr | E1: Kal.Tage/Wo | F1: Arb.Zeit/Wo | G1: Arb.Tage/Wo | H1: Std./AT
B2: 52 volle Wochen plus Rumpfwoche | D2: 365 | E2: 7 | F2: 40 | G2: 5 | H2: 8
B3: Schalttag jedes 4. Jahr (Ø 1/4 Kdtg) | D3: 0.25
E4: Wo/Jahr | F4: Std/Jahr | G4: Std./Mo | H4: Arb.Tage/Jahr
B5: Vertragliche Brutto - Jahresarbeitszeit | D5: =SUM(D2:D4) -> 365.25 | E5: =D5/E2 -> 52.17857143 | F5: =E5*F2 -> 2087.142857 | G5: =H5*H2/12 -> 173.9285714 | H5: =E5*G2 -> 260.8928571
B7: LOHNNEBENKOSTENBERECHNUNG
B9: Ermittlung der Ø Anwesenheitszeit / Jahr | E9: Arbeiter
B10: Urlaubsdauer in Wochen | E10: 5 Wochen | G10: 6 Wochen
B11: 1. Ø Vertragliche Brutto-Jahresarbeitszeit | D11: AT | E11: =H5 -> 260.8928571 | G11: =E11 -> 260.8928571
B12: 2. Gesetzliche Feiertage | D12: AT | E12: =VLOOKUP(Unternehmensdaten!$B$19,Feiertage3,2,0) -> 10.43 | F12: =E12/E20 -> 0.04960787964 | G12: =E12 -> 10.43 | H12: =G12/G20 -> 0.05081636091
B13: 2a. Zusätzl. arbeitsfreie Tage gem. KV | D13: AT | E13: =VLOOKUP(Unternehmensdaten!$B$19,Feiertage3,3,0) -> 0.714 | F13: =E13/E20 -> 0.003395975653 | G13: 0.714 | H13: =G13/G20 -> 0.003478703901
B14: 3. Vertragliche Netto-Jahresarbeitszeit (1-2-2a) | D14: AT | E14: =E11-E12-E13 -> 249.7488571 | G14: 249.7488571
B15: 4. Urlaub | D15: AT | E15: 25 | F15: =E15/E20 -> 0.1189067106 | G15: 30 | H15: =G15/G20 -> 0.1461640294
B16: 5. Soll-Arbeitszeit / Jahr (3-4) | D16: AT | E16: =E14-E15 -> 224.7488571 | G16: =G14-G15 -> 219.7488571
B17: 6. Krankenstand | D17: AT | E17: =IF(IF(ISERROR(IF(ISBLANK(Unternehmensdaten!B36),ROUNDUP(Unternehmensdaten!B34,0),Unternehmensdaten!B36)),'Statistische Daten'!B8,IF(ISBLANK(Unternehmensdaten!B36),ROUNDUP(Unternehmensdaten!B34,0),Unternehmensdaten!B36))=0,'Statistische Daten'!B8,IF(ISERROR(IF(ISBLANK(Unternehmensdaten!B36),ROUNDUP(Unternehmensdaten!B34,0),Unternehmensdaten!B36)),'Statistische Daten'!B8,IF(ISBLANK(Unternehmensdaten!B36),ROUNDUP(Unternehmensdaten!B34,0),Unternehmensdaten!B36))) -> 13 | F17: =E17/E20 -> 0.06183148949 | G17: 13 | H17: =G17/G20 -> 0.06333774609
B18: 7. Sonstige Verhinderungszeiten | D18: AT | E18: =IF(ISERROR(Unternehmensdaten!B37),'Statistische Daten'!B9,IF(ISBLANK(Unternehmensdaten!B37),'Statistische Daten'!B9,IF(Unternehmensdaten!B37=0,'Statistische Daten'!B9,Unternehmensdaten!B37))) -> 1.5 | F18: =E18/E20 -> 0.007134402633 | G18: 1.5 | H18: =G18/G20 -> 0.007308201472
B19: 7a. Sonstige Fehlzeiten (Berufsschulzeit - Lehrlinge, Ausbildungen, …) | D19: AT | E19: =IF(ISERROR(Unternehmensdaten!B38),0,IF(ISBLANK(Unternehmensdaten!B38),0,IF(Unternehmensdaten!B38=0,0,Unternehmensdaten!B38))) -> 0 | F19: =E19/E20 -> 0 | G19: 0 | H19: =G19/G20 -> 0
B20: 8. Anwesenheitszeit/Jahr (5-6-7-7a), Leistungszeit | D20: AT | E20: =E16-E17-E18-E19 -> 210.2488571 | F20: 1 | G20: =G16-G17-G18-G19 -> 205.2488571 | H20: 1
D21: oder Std. | E21: =E20*H2 -> 1681.990857 | G21: =G20*H2 -> 1641.990857
D22: oder Wo | E22: =E21/F2 -> 42.04977143 | G22: =G21/F2 -> 41.04977143
B24: Ø Anwesenheitszeit im Jahr pro Woche | D24: Std. | E24: =E21/E5 -> 32.23527995 | G24: =G21/E5 -> 31.46868172
B26: Nichtanwesenheitszeiten / Jahr | E26: Arbeiter
B27: Urlaubsdauer in Wochen | E27: 5 Wochen | G27: 6 Wochen
B28: 9. Summe Nichtanwesenheits-Zeiten/Jahr (2+2a+4+6+7+7a), Fehlzeiten, Ausfallzeiten | D28: AT | E28: =E11-E20 -> 50.644 | F28: =E28/E20 -> 0.240876458 | G28: =G11-G20 -> 55.644 | H28: =G28/G20 -> 0.2711050418
D29: oder Std. | E29: =E28*8 -> 405.152 | G29: =G28*8 -> 445.152
D30: oder Wo | E30: =E29/40 -> 10.1288 | G30: =G29/40 -> 11.1288
B32: Berechnung der Lohnnebenkosten (Arbeiter) | E32: Urlaubsdauer
E33: 5 Wochen | G33: 6 Wochen
B34: a) Anwesenheitsentgelt; AW-Entgelt | D34: Std. | E34: =E21 -> 1681.990857 | F34: 1 | G34: =G21 -> 1641.990857 | H34: 1
B35: b) Nicht AW-Entgelt | D35: Std. | E35: =E29 -> 405.152 | F35: =E35/E34 -> 0.240876458 | G35: =G29 -> 445.152 | H35: =G35/G34 -> 0.2711050418
B36: c) Laufende Bezüge (a+b) | E36: =E34+E35 -> 2087.142857 | F36: =F34+F35 -> 1.240876458 | G36: =G34+G35 -> 2087.142857 | H36: =H34+H35 -> 1.271105042
B37: d) Sonderzahlungen/SZ | C37: Stunden | D37: % auf LB
B38: Weihnachtsremuneration (4,33 Wo) | C38: 173.93 | D38: =C38/E36 -> 0.0833340178
B39: Urlaubszuschuss UZ (4,33 Wo) | C39: 173.93 | D39: =C39/E36 -> 0.0833340178
B40: Summe Sonderzahlung | C40: =SUM(C38:C39) -> 347.86 | D40: =SUM(D38:D39) -> 0.1666680356 | E40: =C40 -> 347.86 | F40: =E40/E34 -> 0.2068144417 | G40: =E40 -> 347.86 | H40: =G40/G34 -> 0.2118525804
B41: e) Direkte Arbeitskosten (c+d) | E41: =E36+E40 -> 2435.002857 | F41: =E41/E34 -> 1.4476909 | G41: =G36+G40 -> 2435.002857 | H41: =G41/G34 -> 1.482957622
B42: f) Sozialabgaben | C42: in % auf LB | D42: in % auf SZ
B43: Sozialversicherungsbeiträge (AG-Anteil)
B44: Pensionsversicherung | C44: ='Österreichische Werte'!B78 -> 0.1255 | D44: ='Österreichische Werte'!B78 -> 0.1255
B45: Unfallversicherung | C45: ='Österreichische Werte'!B79 -> 0.012 | D45: ='Österreichische Werte'!B79 -> 0.012
B46: Krankenversicherung | C46: ='Österreichische Werte'!B80 -> 0.0378 | D46: ='Österreichische Werte'!B80 -> 0.0378
B47: Arbeitslosenversicherung und Zuschlag gem. IESG | C47: ='Österreichische Werte'!B81+'Österreichische Werte'!B82 -> 0.031 | D47: ='Österreichische Werte'!B81+'Österreichische Werte'!B82 -> 0.031
B48: Wohnbauförderungsbeitrag | C48: ='Österreichische Werte'!B83 -> 0.005
B49: Summe Sozialversicherungsbeiträge | C49: =SUM(C44:C48) -> 0.2113 | D49: =SUM(D44:D48) -> 0.2063
B50: Sonstige Sozialabgaben
B51: Familienlastenausgleichfond (DG-Beitrag) (DB) | C51: ='Österreichische Werte'!B85 -> 0.039 | D51: ='Österreichische Werte'!B85 -> 0.039
B52: Dienstgeberzuschlag **unterschiedlich (DZ) | C52: =VLOOKUP(Unternehmensdaten!B5,DZ_1,2,0) -> 0.0038 | D52: =VLOOKUP(Unternehmensdaten!B5,DZ_1,2,0) -> 0.0038
B53: Kommunalsteuer | C53: ='Österreichische Werte'!B87 -> 0.03 | D53: ='Österreichische Werte'!B87 -> 0.03
B54: Beitrag zum Sozialfonds der DFG | C54: =IF(Unternehmensdaten!B80="ja",'Österreichische Werte'!B97,) -> 0.002 | D54: =IF(Unternehmensdaten!B80="ja",'Österreichische Werte'!B97,) -> 0.002
B55: Summe Sonstige Sozialabgaben | C55: =SUM(C51:C54) -> 0.0748 | D55: =SUM(D51:D54) -> 0.0748
B56: Summe Sozialabgaben auf laufende Bezüge | C56: =C55+C49 -> 0.2861
C57: *LB (=c)) | E57: =F36 -> 1.240876458 | F57: =$C$56*E57 -> 0.3550147546 | G57: =H36 -> 1.271105042 | H57: =$C$56*G57 -> 0.3636631525
B58: Summe Sozialabgaben auf Sonderzahlung | D58: =D55+D49 -> 0.2811
D59: *SZ (=d)) | E59: =F40 -> 0.2068144417 | F59: =$D$58*E59 -> 0.05813553955 | G59: =H40 -> 0.2118525804 | H59: =$D$58*G59 -> 0.05955176034
B60: Summe Sozialabgaben auf LB+SZ, bezogen auf AW (a) | F60: =SUM(F57:F59) -> 0.4131502942 | H60: =SUM(H57:H59) -> 0.4232149128
B61: g) Abfertigungskosten NEU 1,53% auf LB (a + b) und SZ | C61: ='Österreichische Werte'!B49 -> 0.0153 | F61: =C61*F41 -> 0.02214967076 | H61: =C61*H41 -> 0.02268925162
B62: g*) Kosten für Abfertigung alt (betriebsindividuell) | F62: =IF(ISERROR(Kalkulation!$E$49-'Übersicht LZ_NLZ'!F61),0,Kalkulation!$E$49-'Übersicht LZ_NLZ'!F61) -> -2.598960959e-08 | H62: =IF(ISERROR(Kalkulation!$E$49-'Übersicht LZ_NLZ'!F61),0,Kalkulation!$E$49-'Übersicht LZ_NLZ'!F61) -> -2.598960959e-08
B63: h) Sonstige Nebenkosten
B64: Fahrtkostenersatz DN | D64: =Kalkulation!D56 -> 0
B65: Behindertenausgleichstaxe | D65: =Kalkulation!D57 -> 0
B66: Dienstgeberabgabe/U-Bahnsteuer (nur in Wien) | D66: =Kalkulation!D58 -> 0.007
B67: Auflösungsabgabe - ENTFÄLLT ab 01.01.2020 | D67: 0
B68: Kosten für Arbeitnehmerschutz (Präventivdienste und PSA) | D68: =Kalkulation!D59 -> 0
B69: Summe Sonstige Nebenkosten | D69: =SUM(D64:D68) -> 0.007 | F69: =$D$69*F36 -> 0.008686135206 | H69: =$D$69*F36 -> 0.008686135206
B70: Nebenkosten (b+d+f+g+h) | F70: =F35+F40+F60+F61+F62+F69 -> 0.8916769738 | H70: =H35+H40+H60+H61+H62+H69 -> 0.9375478958

Sheet Österreichische Werte
A1: Werte Behindertenausgleichstaxe
A2: Quelle: | B2: https://www.weka.at/personalverrechnung/News/Ausgleichstaxe-2022 | F2: und | G2: https://www.wko.at/service/arbeitsrecht-sozialrecht/arbeitsrechtliche-werte-2022.html
A3: Quelle & Definition: | B3: https://www.sozialministeriumservice.at/Menschen_mit_Behinderung/Ausbildung__Beruf_und_Beschaeftigung/Ausgleichstaxe_und_Praemie/Ausgleichstaxe_und_Praemie.de.html
A5: Jahr 2022 | B5: Anzahl MA | C5: EUR/nebP/Mon | D5: EUR/nebP/Jahr | F5: nebP = nicht eingestellte begünstigte Person | J5: Jahr 2021 | K5: Anzahl MA | L5: EUR/nebP/Mon | M5: EUR/nebP/Jahr | N5: Steigerung 2021 | P5: Jahr 2020 | Q5: Anzahl MA | R5: EUR/nebP/Mon | S5: EUR/nebP/Jahr | T5: Steigerung 2020 | V5: Jahr 2019 | W5: Anzahl MA | X5: EUR/nebP/Mon | Y5: EUR/nebP/Jahr | Z5: Steigerung 2019 | AB5: Jahr 2018 | AC5: Anzahl MA | AD5: EUR/nebP/Mon | AE5: EUR/nebP/Jahr | AF5: Steigerung 2019 | AH5: Jahr 2017 | AI5: Anzahl MA | AJ5: EUR/nebP/Mon | AK5: EUR/nebP/Jahr | AL5: Steigerung 2018 | AN5: Jahr 2016 | AO5: Anzahl MA | AP5: EUR/nebP/Mon | AQ5: EUR/nebP/Jahr | AR5: Steigerung 2017 | AT5: Jahr 2015 | AU5: Anzahl MA | AV5: EUR/nebP/Mon | AW5: EUR/nebP/Jahr | AX5: Steigerung 2016 | AZ5: Jahr 2014 | BA5: Anzahl MA | BB5: EUR/nebP/Mon | BC5: EUR/nebP/Jahr | BD5: Steigerung 2015
A6: weniger | B6: 100 | C6: 276 | D6: =C6*12 -> 3312 | J6: weniger | K6: 100 | L6: 271 | M6: =L6*12 -> 3252 | N6: =C6/L6-1 -> 0.0184501845 | P6: weniger | Q6: 100 | R6: 267 | S6: 3204 | T6: =L6/R6-1 -> 0.01498127341 | V6: weniger | W6: 100 | X6: 262 | Y6: =X6*12 -> 3144 | Z6: =R6/X6-1 -> 0.01908396947 | AB6: weniger | AC6: 100 | AD6: 257 | AE6: =AD6*12 -> 3084 | AF6: =X6/AD6-1 -> 0.01945525292 | AH6: weniger | AI6: 100 | AJ6: 253 | AK6: =AJ6*12 -> 3036 | AL6: =AD6/AJ6-1 -> 0.01581027668 | AN6: weniger | AO6: 100 | AP6: 251 | AQ6: =AP6*12 -> 3012 | AR6: =AJ6/AP6-1 -> 0.00796812749 | AT6: weniger | AU6: 100 | AV6: 248 | AW6: =AV6*12 -> 2976 | AX6: =AP6/AV6-1 -> 0.01209677419 | AZ6: weniger | BA6: 100 | BB6: 244 | BC6: =BB6*12 -> 2928 | BD6: =AV6/BB6-1 -> 0.01639344262 | BE6: 0.01639344262
A7: 100 bis | B7: 399 | C7: 388 | D7: =C7*12 -> 4656 | E7: Wert für Kalk | F7: =IF(Unternehmensdaten!B11<100,'Österreichische Werte'!D6,IF(Unternehmensdaten!B11<399,'Österreichische Werte'!D7,'Österreichische Werte'!D8)) -> 3312 | J7: 100 bis | K7: 399 | L7: 381 | M7: =L7*12 -> 4572 | N7: =C7/L7-1 -> 0.01837270341 | P7: 100 bis | Q7: 399 | R7: 375 | S7: 4500 | T7: =L7/R7-1 -> 0.016 | V7: 100 bis | W7: 399 | X7: 368 | Y7: =X7*12 -> 4416 | Z7: =R7/X7-1 -> 0.01902173913 | AB7: 100 bis | AC7: 399 | AD7: 361 | AE7: =AD7*12 -> 4332 | AF7: =X7/AD7-1 -> 0.01939058172 | AH7: 100 bis | AI7: 399 | AJ7: 355 | AK7: =AJ7*12 -> 4260 | AL7: =AD7/AJ7-1 -> 0.01690140845 | AN7: 100 bis | AO7: 399 | AP7: 352 | AQ7: =AP7*12 -> 4224 | AR7: =AJ7/AP7-1 -> 0.008522727273 | AT7: 100 bis | AU7: 399 | AV7: 348 | AW7: =AV7*12 -> 4176 | AX7: =AP7/AV7-1 -> 0.01149425287 | AZ7: 100 bis | BA7: 399 | BB7: 342 | BC7: =BB7*12 -> 4104 | BD7: =AV7/BB7-1 -> 0.01754385965 | BE7: 0.01754385965
A8: mehr als | B8: 400 | C8: 411 | D8: =C8*12 -> 4932 | J8: mehr als | K8: 400 | L8: 404 | M8: =L8*12 -> 4848 | N8: 0.01732673267 | P8: mehr als | Q8: 400 | R8: 398 | S8: 4776 | T8: =L8/R8-1 -> 0.01507537688 | V8: mehr als | W8: 400 | X8: 391 | Y8: =X8*12 -> 4692 | Z8: =R8/X8-1 -> 0.0179028133 | AB8: mehr als | AC8: 400 | AD8: 383 | AE8: =AD8*12 -> 4596 | AF8: 0.02088772846 | AH8: mehr als | AI8: 400 | AJ8: 377 | AK8: =AJ8*12 -> 4524 | AL8: 0.01591511936 | AN8: mehr als | AO8: 400 | AP8: 374 | AQ8: =AP8*12 -> 4488 | AR8: 0.008021390374 | AT8: mehr als | AU8: 400 | AV8: 370 | AW8: =AV8*12 -> 4440 | AX8: 0.01081081081 | AZ8: mehr als | BA8: 400 | BB8: 364 | BC8: =BB8*12 -> 4368 | BD8: =AV8/BB8-1 -> 0.01648351648 | BE8: 0.01648351648
A10: Werte Dienstgeberzuschlag
A11: Definition: | B11: https://www.wko.at/service/steuern/Zuschlag_zum_Dienstgeberbeitrag.html | F11: https://www.patka-knowhow.at/salzburg-senkt-als-einziges-bundesland-den-dz-um-01/
A13: Bundesland | B13: Höhe DZ 2020 bis 2022 | C13: Änderung DZ | E13: Bundesland | F13: Höhe DZ 2019 | G13: Höhe DZ 2018 | H13: Werte 2015 | I13: DZ
A14: Burgenland | B14: 0.0042 | C14: =B14-F14 -> 0 | D14: Maximum | E14: Burgenland | F14: 0.0042 | G14: 0.0044 | H14: Burgenland | I14: 0.0044
A15: Kärnten | B15: 0.0039 | C15: =B15-F15 -> 0 | E15: Kärnten | F15: 0.0039 | G15: 0.0041 | H15: Kärnten | I15: 0.0041
A16: Niederösterreich | B16: 0.0038 | C16: 0 | E16: Niederösterreich | F16: 0.0038 | G16: 0.004 | H16: Niederösterreich | I16: 0.004
A17: Oberösterreich | B17: 0.0034 | C17: 0 | D17: Minimum | E17: Oberösterreich | F17: 0.0034 | G17: 0.0036 | H17: Oberösterreich | I17: 0.0036
A18: Salzburg | B18: 0.0039 | C18: =B18-B18 -> 0 | E18: Salzburg | F18: 0.004 | G18: 0.0042 | H18: Salzburg | I18: 0.0042
A19: Steiermark | B19: 0.0037 | C19: 0 | E19: Steiermark | F19: 0.0037 | G19: 0.0039 | H19: Steiermark | I19: 0.0039
A20: Tirol | B20: 0.0041 | C20: 0 | E20: Tirol | F20: 0.0041 | G20: 0.0043 | H20: Tirol | I20: 0.0043
A21: Vorarlberg | B21: 0.0037 | C21: 0 | E21: Vorarlberg | F21: 0.0037 | G21: 0.0039 | H21: Vorarlberg | I21: 0.0039
A22: Wien | B22: 0.0038 | C22: 0 | E22: Wien | F22: 0.0038 | G22: 0.004 | H22: Wien | I22: 0.004
A25: Werte U-Bahnsteuer/Wien 2022 (Wert seit 01.06.2012)
B26: pro Woche | C26: Wo/Mon | D26: pro Monat | E26: pro Jahr
A27: pro Mitarbeiter | B27: 2 | C27: 4.35 | D27: =B27*C27 -> 8.7 | E27: =D27*12 -> 104.4 | G27: zahlbar für MA bis 55 Jahre und nicht bei GFB
A29: Definition und Quelle: | B29: https://www.wko.at/service/steuern/Dienstgeberabgabe_der_Gemeinde_Wien_(DGA,_U-Bahn_Steuer).html
A30: Präventivdienste (Arbeitsmediziner, SFK) | L30: es fehlt | M30: Werte für Pärventivdienste
A31: Anzahl MA | B31: Std/Jahr | C31: EUR/Jahr | D31: EUR/Std | E31: EUR/Jahr/MA | H31: Anpasung | M31: 2 Angebote über Stundensätze als Berechnungsgrundlage
A32: 200 | B32: 150 | C32: 10800 | D32: =C32/B32 -> 72 | E32: =C32/A32 -> 54 | F32: SFK | H32: 2022 | I32: 0.038
A33: 200 | B33: 150 | C33: =B33*D33 -> 10291.1472 | D33: =64.8*1.038*1.02 -> 68.607648 | E33: =C33/A33 -> 51.455736 | F33: SFK | H33: 2021 | I33: 0.0225 | L33: Kosten für Präventivdienste (Arbeitsmediziner, SFK) und PSA (Gesamtkosten)
A34: 200 | B34: 100 | C34: 10200 | D34: =C34/B34 -> 102 | E34: =C34/A34 -> 51 | F34: AM | H34: 2020 | I34: 0.0282
A35: 200 | B35: 100 | C35: 12000 | D35: =C35/B35 -> 120 | E35: =C35/A35 -> 60 | F35: AM
L36: 2019 | M36: 0.0415
D37: Schnitt SFK/MA/Jahr | E37: =AVERAGE(E32:E33)*(1+M38)*(1+M37)*(1+M36)*(1+I34)*(1+M39)*(1+I33)*(1+I32) -> 63.68820311 | G37: 2013 auf 2015 hochgerechnet | L37: 2018 | M37: 0.028
D38: Schnitt AM/MA/Jahr | E38: =AVERAGE(E34:E35)*(1+M38)*(1+M37)*(1+M36)*(1+I34)*(1+M39)*(1+I33)*(1+I32) -> 67.03656731 | G38: Daten für Kalkulation | H38: in % von Lohn | L38: 2017 | M38: 0.016
D39: Durchschnittl. Kosten/MA/Jahr | E39: =SUM(E37:E38) -> 130.7247704 | G39: =E39*Unternehmensdaten!B11 -> 0 | H39: =G39/Unternehmensdaten!B32 ->  | L39: 2016 | M39: 0.0175
A41: Auflösungsabgabe - ENTFÄLLT AB 01.01.2020
A42: Jahr 2019 | B42: 131 | C42: EUR/Auflösung | E42: Wert 2018 | F42: 128 | G42: =F42/F43-1 -> 0.03225806452 | H42: Erhöhung zu 2017
B43: =B42/F42-1 -> 0.0234375 | C43: Erhöhung zu 2018 | E43: Wert 2017 | F43: 124 | G43: =F43/F44-1 -> 0.02479338843 | H43: Erhöhung zu 2016
E44: Wert 2016 | F44: 121 | G44: =F44/F45-1 -> 0.02542372881 | H44: Erhöhung zu 2015
E45: Wert 2015 | F45: 118 | G45: =F45/F46-1 -> 0.02608695652 | H45: Erhöhung zu 2014 | L45: Anzahl Beendigungen des DV aus Eingabedaten aus dem Unternehmensdatenblatt
E46: Wert 2014 | F46: 115 | L46: Ansonsten Durchschnittswert (Statisktik)
A47: Definition und Quelle: | B47: LINK DEAKTIVIERT: https://www.usp.gv.at/Portal.Node/usp/public/content/mitarbeiter/beendigung_arbeitsverhaeltnis/aufloesungsabgabe/76735.html
A48: Abfertigungsvorsorge
A49: Abfertigungsvorsorge NEU | B49: 0.0153
A50: Abfertigung NEU (5 Wo Url) | B50: ='Übersicht LZ_NLZ'!F61 -> 0.02214967076 | C50: auf Leistungslöhne, Nichtleistungslöhne und Sonderzahlungen bezogen auf Leistungslöhne
A51: Abfertigung NEU (6 Wo Url) | B51: ='Übersicht LZ_NLZ'!H61 -> 0.02268925162 | C51: auf Leistungslöhne, Nichtleistungslöhne und Sonderzahlungen bezogen auf Leistungslöhne
A54: Abfertigung ALT
A56: Jahre | B56: Monate | C56: Abfertigung Bezüge | D56: % | E56: Wahrscheinlichkeit | F56: % AbfVS
A57: 3 | B57: =A57*12 -> 36 | C57: 2 | D57: =C57/B57 -> 0.05555555556 | E57: 0 | F57: =D57*E57 -> 0
A58: 5 | B58: 60 | C58: 3 | D58: 0.05 | E58: 0 | F58: 0
A59: 10 | B59: 120 | C59: 4 | D59: 0.03333333333 | E59: 0 | F59: 0
A60: 15 | B60: 180 | C60: 6 | D60: 0.03333333333 | E60: 0 | F60: 0
A61: 20 | B61: 240 | C61: 9 | D61: 0.0375 | E61: 0 | F61: 0
A62: 25 | B62: 300 | C62: 12 | D62: 0.04 | E62: 0.95 | F62: 0.038
D63: Fluktuationsabschlag | E63: 0.05
E64: =SUM(E57:E63) -> 1 | F64: =SUM(F57:F63) -> 0.038
A65: Quelle: | B65: https://www.wko.at/service/arbeitsrecht-sozialrecht/Abfertigung_Alt.html
B66: https://www.wko.at/service/arbeitsrecht-sozialrecht/Leistungs-_und_beitragsrechtliche_Unterschiede_ASVG_-_GSVG.html
A68: IESG (Insolvenz-Entgeltsicherungs-Gesetz) - seit 01.01.2020 neuerlich gesenkt
A69: IESG Zuschlag | B69: 0.0035 | C69: 2020-01-01 | D69: Wert 2019 | E69: 0.0035 | F69: 2016-01-01
D70: Wert 2015 | E70: 0.0045 | F70: 2015-01-01
D71: Wert 2014 | E71: 0.005
A73: Quelle: | B73: https://www.ris.bka.gv.at/Dokumente/BgblAuth/BGBLA_2019_II_356/BGBLA_2019_II_356.pdfsig | G73: Senkung des IESG Zuschlags von 0,35 % auf 0,20 % in BGBl II 2019/356 vom 28.11.2019
B74: https://www.ris.bka.gv.at/Dokumente/BgblAuth/BGBLA_2015_II_375/BGBLA_2015_II_375.pdf | G74: Senkung des IESG Zuschlags von 0,45 % auf 0,35 % in BGBl II 2015/375 vom 24.11.2015
A76: Werte Sozialversicherung
A77: Betragsbestandteile | B77: Stand: 2022 | C77: Stand: 2020 und 2021 | D77: Stand: 2019 | E77: Stand: 2018 | F77: Werte 2017 | G77: Werte bis 2015 und 2016
A78: Pensionsversicherung | B78: 0.1255 | C78: 0.1255 | D78: 0.1255 | E78: 0.1255 | F78: 0.1255 | G78: 0.1255
A79: Unfallversicherung | B79: 0.012 | C79: 0.012 | D79: 0.012 | E79: 0.013 | F79: 0.013 | G79: 0.013
A80: Krankenversicherung | B80: 0.0378 | C80: 0.0378 | D80: 0.0378 | E80: 0.0378 | F80: 0.0378 | G80: 0.037
A81: Arbeitslosenversicherung | B81: 0.03 | C81: 0.03 | D81: 0.03 | E81: 0.03 | F81: 0.03 | G81: =3%+0.45% -> 0.0345
A82: IESG Zuschlag | B82: 0.001 | C82: 0.002 | D82: 0.0035 | E82: 0.0035 | F82: 0.0035 | G82: 0.005
A83: Wohnbauförderung | B83: 0.005 | C83: 0.005 | D83: 0.005 | E83: 0.005 | F83: 0.005 | G83: 0.005
B84: =SUM(B78:B83) -> 0.2113 | C84: 0.2123 | D84: 0.2138 | E84: 0.2148 | F84: 0.2148 | G84: 0.22
A85: Dienstgeberbeitrag (DB) | B85: 0.039 | C85: 0.039 | D85: 0.039 | E85: 0.039 | F85: 0.041 | G85: =4.5% -> 0.045
A86: Dienstgeberzuschlag (DZ)
A87: Kommunalsteuer | B87: 0.03 | C87: 0.03 | D87: 0.03 | E87: 0.03 | F87: 0.03 | G87: 0.03
A89: Quelle (Aktuelle Werte): | B89: https://www.sozialversicherung.at/cdscontent/?contentid=10007.862683&portal=svportal
A90: Beitragsrechtliche Werte
B91: https://www.wko.at/service/steuern/Aktuelle_Werte_Lohnverrechnung.html
B92: https://www.wko.at/service/steuern/Dienstgeberbeitrag_zum_Familienlastenausgleichsfonds_(DB).html
B93: https://www.wko.at/service/steuern/Kommunalsteuer.html
B94: https://www.weka.at/arbeitsrecht/News/Senkung-des-IESG-Zuschlages-ab-1.1.2022
A96: Sozialfonds der DFG (neu ab 01.01.2022) § 19 NEU Rahmen-KV DFG
A97: Beitrag | B97: 0.002 | C97: der Lohnsumme gem. | D97: § 49 SVG | E97: Schalter für DFG | F97: ja
F98: nein
A99: Lohn, Sonderzahlungen, Prämien, Überstunden, Zulagen
A101: Quelle | B101: https://www.wko.at/service/kollektivvertrag/kollektivvertrag-denkmal-fassaden-gebaeudereiniger-2022.html#heading_19
B102: https://www.ris.bka.gv.at/NormDokument.wxe?Abfrage=Bundesnormen&Gesetzesnummer=10008147&Artikel=&Paragraf=49&Anlage=&Uebergangsrecht=

Sheet KV Daten DFG 2022
A1: Lohngruppe | B1: Bezeichnung | C1: Bruttostundensatz 2022 | E1: 2021 | F1: Veränderung zu VJ
A2: 1 | B2: Facharbeiter | C2: 11.74 | E2: 11.43 | F2: =C2/E2-1 -> 0.0271216098 | H2: Bruttostundensätze (Lohngruppen)
A3: 2 | B3: Sonderreiniger | C3: 10.66 | E3: 10.38 | F3: =C3/E3-1 -> 0.02697495183 | H3: Zuschläge (Üst., Nacht, SEG, Infektion, FT/SO)
A4: 3 | B4: Hotelreinigung | C4: 10.4 | E4: 10.13 | F4: 0.02665350444 | H4: Trennungszulage, Zehrgeld
A5: 4 | B5: Hausbetreuer | C5: 10.1 | E5: 9.83 | F5: 0.02746693795 | H5: Fahrtkostenentschädigung
A6: 5 | B6: UHR Krankenhaus/Pflegeheim | C6: 9.84 | E6: 9.48 | F6: 0.03797468354
A7: 6 | B7: UHR (Büro, Industrie, …) | C7: 9.71 | E7: 9.38 | F7: 0.03518123667
B9: Zehrgeld pro Tag | C9: 10.95 | E9: 10.95 | F9: 0
B10: Trennungszulage pro Tag | C10: 18.4 | E10: 18.4 | F10: 0
F12: =AVERAGE(F2:F7) -> 0.03022882071 | H12: Erhöhung im Durchschnitt über die Lohngruppen

Sheet Statistische Daten
A1: Feiertage
B2: 15 gesetzliche Feiertage | C2: Zusätzl. arbeitsfreie Tage gem. KV | D2: Gesamt
A3: langjähriger Durchschnitt | B3: 10.43 | C3: 0.714 | D3: =SUM(B3:C3) -> 11.144 | F3: Quelle: https://www.wko.at/service/kollektivvertrag/lohnnebenkosten-gebaeudereiniger-2022.pdf
A4: laufendes Jahr (2022) | B4: 10 | C4: 0 | D4: =SUM(B4:C4) -> 10 | F4: Quelle: https://www.brückentage.info/feiertage-österreich-2022.html und https://www.wko.at/service/kollektivvertrag/lohnnebenkosten-gebaeudereiniger-2022.pdf
A7: Durchschnittswerte Stand: 2022 | F7: Unterschiedliche Werte veröffentlicht (Gesamtösterreich, Arbeiter, Angestellte, …)
A8: Krankenstand (Arbeiter) | B8: 13 | D8: Risiko | E8: 0.015 | F8: Quelle: https://www.wko.at/service/kollektivvertrag/lohnnebenkosten-gebaeudereiniger-2022.pdf
A9: Sonstige Verhinderungszeiten | B9: 1.5 | D9: Gewinn | E9: 0.05
A13: Studie KMU-Forschung Austria - Beispielhafte Musterstundensatzkalkulation
B15: EPU Wien | C15: 17 Beschäftigte | D15: 70 Beschäftigte | E15: 250 Beschäftigte | F15: 510 Beschäftigte
A16: Umsatz | B16: 35000
A17: Kostenstruktur
A18: Materialaufwand | B18: 2100 | C18: 29600 | D18: 219500 | E18: 348410 | F18: 417000
A19: Materialaufwand in % | B19: =B18/B$28 -> 0.06025824964 | C19: =C18/C$28 -> 0.0402398075 | D19: =D18/D$28 -> 0.07974365775 | E19: =E18/E$28 -> 0.03972915619 | F19: =F18/F$28 -> 0.02294658344
A20: Fremdleistungen | B20: 2740 | C20: 85900 | D20: 131760 | E20: 594410 | F20: 1336300
A21: Fremdleistungen in % | B21: =B20/B$28 -> 0.07862266858 | C21: =C20/C$28 -> 0.1167770089 | D21: =D20/D$28 -> 0.04786799246 | E21: =E20/E$28 -> 0.06778051069 | F21: =F20/F$28 -> 0.07353361977
A22: Personalkosten | B22: 20340 | C22: 456650 | D22: 1884400 | E22: 6584790 | F22: 13693400 | G22: =788704/F22 -> 0.05759738268
A23: Personalkosten in % | B23: =B22/B$28 -> 0.5836441894 | C23: =C22/C$28 -> 0.6207941924 | D23: =D22/D$28 -> 0.684596577 | E23: =E22/E$28 -> 0.7508629212 | F23: =F22/F$28 -> 0.7535173756
A24: Sonstiger Aufwand | B24: 9240 | C24: 152800 | D24: 483060 | E24: 1164970 | F24: 2623370
A25: Sonstiger Aufwand in % | B25: =B24/B$28 -> 0.2651362984 | C25: =C24/C$28 -> 0.2077244117 | D25: =D24/D$28 -> 0.1754941745 | E25: =E24/E$28 -> 0.1328414084 | F25: =F24/F$28 -> 0.144358222
A26: Finanzierungskosten | B26: 430 | C26: 10640 | D26: 33850 | E26: 77050 | F26: 102570
A27: Finanzierungskosten | B27: =B26/B$28 -> 0.01233859397 | C27: =C26/C$28 -> 0.01446457945 | D27: =D26/D$28 -> 0.01229759824 | E27: =E26/E$28 -> 0.008786003514 | F27: =F26/F$28 -> 0.005644199192
A28: Summe Kosten | B28: =B18+B20+B22+B24+B26 -> 34850 | C28: 735590 | D28: 2752570 | E28: 8769630 | F28: 18172640
A29: Summe Kosten in % | B29: 1 | C29: 1 | D29: 1 | E29: 1 | F29: 1
A30: Kosten in EUR | B30: 34850 | C30: =C28 -> 735590 | D30: =D28 -> 2752570 | E30: =E28 -> 8769630 | F30: =F28 -> 18172640
A31: Gemeinkosten | B31: =ROUNDUP(B18*0.02+B22*0.02+B24+B26,0) -> 10119 | C31: =ROUNDUP(C18*0.02+C22*0.108906164458557+C24+C26,0) -> 213764 | D31: =ROUNDUP(D18*0.02+D22*0.0632434727234133+D24+D26,0) -> 640476 | E31: =ROUNDUP(E18*0.02+E22*0.0563323963254713+E24+E26,0) -> 1619926 | F31: =ROUNDUP(F18*0.02+F22*0.0575973826807075+F24+F26,0) -> 3522984
A32: Materialkostenaufschlag verr | B32: 0.2 | C32: 0.2 | D32: 0.2 | E32: 0.2 | F32: 0.2
A33: Materialkostenaufschlag in EUR | B33: =ROUNDUP(B18*0.98*B32,0) -> 412 | C33: =ROUNDUP(C18*0.98*C32,0) -> 5802 | D33: =ROUNDUP(D18*0.98*D32,0) -> 43022 | E33: =ROUNDUP(E18*0.98*E32,0) -> 68289 | F33: =ROUNDUP(F18*0.98*F32,0) -> 81732
A34: Restliche Gemeinkosten | B34: =B31-B33 -> 9707 | C34: =C31-C33 -> 207962 | D34: =D31-D33 -> 597454 | E34: =E31-E33 -> 1551637 | F34: =F31-F33 -> 3441252
A35: verrechenbare Stunden | B35: 1744 | C35: 26276 | D35: 114512 | E35: 417377 | F35: 853394
A36: Gemeinkosten in EUR/Std | B36: =B34/B35 -> 5.565940367 | C36: =C34/C35 -> 7.914522758 | D36: =D34/D35 -> 5.217392064 | E36: =E34/E35 -> 3.717591051 | F36: =F34/F35 -> 4.032430507
A37: Gemeinkosten in %/Umsatz | B37: =B34/B16 -> 0.2773428571
A38: Gemeinkosten in %/Personalkosten | B38: =B34/B22 -> 0.4772369715 | C38: =C34/C22 -> 0.4554078616 | D38: =D34/D22 -> 0.3170526428 | E38: =E34/E22 -> 0.2356395572 | F38: =F34/F22 -> 0.2513073451
A39: Sonstiger Aufwand in % von Personal | B39: =B24/B22 -> 0.4542772861 | C39: =C24/C22 -> 0.3346107522 | D39: =D24/D22 -> 0.2563468478 | E39: =E24/E22 -> 0.1769183224 | F39: =F24/F22 -> 0.1915791549
A40: Personalkosten Brutto (ohne LNK!) | B40: =B22/(100%+B43)*100% -> 10561.29602 | C40: =C22/(100%+C43)*100% -> 237109.9226 | D40: =D22/(100%+D43)*100% -> 975917.9657 | E40: =E22/(100%+E43)*100% -> 3399654.086 | F40: =F22/(100%+F43)*100% -> 7044292.402
A41: Nichtleistungslöhne in % | B41: 0.249 | C41: 0.249 | D41: 0.249 | E41: 0.249 | F41: 0.249
A43: Lohnnebenkosten gem Studie | B43: 0.9259 | C43: 0.9259 | D43: 0.9309 | E43: 0.9369 | F43: 0.9439
A44: Diverse mögliche Zulagen | B44: 0.05 | C44: 0.05 | D44: 0.05 | E44: 0.05 | F44: 0.05
A45: Gewinnaufschlag | B45: 0.05 | C45: 0.05 | D45: 0.05 | E45: 0.05 | F45: 0.05
A47: Stundenlohn | B47: 8.5 | C47: 8.08 | D47: 8.08 | E47: 8.08 | F47: 8.08
A48: Lohnnebenkosten | B48: =B47*B43 -> 7.87015 | C48: =C47*C43 -> 7.481272 | D48: =D47*D43 -> 7.521672 | E48: =E47*E43 -> 7.570152 | F48: =F47*F43 -> 7.626712
A49: Zulagen | B49: =B47*B44 -> 0.425 | C49: =C47*C44 -> 0.404 | D49: =D47*D44 -> 0.404 | E49: =E47*E44 -> 0.404 | F49: =F47*F44 -> 0.404
A50: Personalkosten | B50: =SUM(B47:B49) -> 16.79515 | C50: =SUM(C47:C49) -> 15.965272 | D50: =SUM(D47:D49) -> 16.005672 | E50: =SUM(E47:E49) -> 16.054152 | F50: =SUM(F47:F49) -> 16.110712
A51: Gemeinkosten | B51: =B36 -> 5.565940367 | C51: =C36 -> 7.914522758 | D51: =D36 -> 5.217392064 | E51: =E36 -> 3.717591051 | F51: =F36 -> 4.032430507
A52: Selbstkosten | B52: =SUM(B50:B51) -> 22.36109037 | C52: =SUM(C50:C51) -> 23.87979476 | D52: =SUM(D50:D51) -> 21.22306406 | E52: =SUM(E50:E51) -> 19.77174305 | F52: =SUM(F50:F51) -> 20.14314251
A53: Gewinnaufschlag | B53: =B52*B45 -> 1.118054518 | C53: =C52*C45 -> 1.193989738 | D53: =D52*D45 -> 1.061153203 | E53: =E52*E45 -> 0.9885871525 | F53: =F52*F45 -> 1.007157125
A54: Stundensatz netto | B54: =SUM(B52:B53) -> 23.47914489 | C54: =SUM(C52:C53) -> 25.0737845 | D54: =SUM(D52:D53) -> 22.28421727 | E54: =SUM(E52:E53) -> 20.7603302 | F54: =SUM(F52:F53) -> 21.15029963
A55: Gewinaufschlag auf PersKo | B55: =B53/B58 -> 0.1053129109 | C55: =C53/C58 -> 0.1183114549 | D55: =D53/D58 -> 0.1051487926 | E55: =E53/E58 -> 0.09795828272 | F55: =F53/F58 -> 0.09979836595
A57: Werte für Kalkulation | B57: Ein Personen Unternehmen | C57: bis 17 Mitarbeiter | D57: bis 70 Mitarbeiter | E57: bis 250 Mitarbeiter | F57: ab 250 Mitarbeiter | G57: Art des Unternehmens | H57: Daten für Kalkulation | K57: Art des Unternehmens | O57: angenommen Deine Matrix geht von A1 bis G19
A58: Stundenlohn inkl NLL | B58: =B47*(1+B41) -> 10.6165 | C58: =C47*(1+C41) -> 10.09192 | D58: =D47*(1+D41) -> 10.09192 | E58: =E47*(1+E41) -> 10.09192 | F58: =F47*(1+F41) -> 10.09192 | G58: =Unternehmensdaten!B7 -> Ein Personen Unternehmen | K58: Ein Personen Unternehmen | L58: 1 | O58: Suchbegriff 1 ( für die Spalte)= in D22
A59: Fahrtkostenersatz | C59: 0.0273 | D59: 0.0273 | E59: 0.0273 | F59: 0.0273 | H59: =VLOOKUP($A59,$A$58:$F$65,MATCH($G$58,$A$57:$F$57,0),FALSE) -> 0 | K59: bis 17 Mitarbeiter | L59: 2 | O59: Suchbegriff2 (für die zeile) = in D23
A60: Behindertenausgleichstaxe | D60: =D43-C43 -> 0.005 | E60: =E43-C43 -> 0.011 | F60: =E60 -> 0.011 | H60: =VLOOKUP($A60,$A$58:$F$65,MATCH($G$58,$A$57:$F$57,0),FALSE) -> 0 | K60: bis 70 Mitarbeiter | L60: 3
A61: Dienstgeberabgabe (U-Bahnsteuer) | F61: =F43-C43-F60 -> 0.007 | G61: generell dieser Wert, nur in Wien | H61: =IF(Unternehmensdaten!B5="Wien",'Statistische Daten'!F61,0) -> 0.007 | K61: bis 250 Mitarbeiter | L61: 4 | O61: dann sieht das so aus
A62: Auflösungsabgabe | B62: 0 | C62: =$B$79 -> 5.3125e-07 | D62: =$B$79 -> 5.3125e-07 | E62: =$B$79 -> 5.3125e-07 | F62: =$B$79 -> 5.3125e-07 | H62: =VLOOKUP($A62,$A$58:$F$65,MATCH($G$58,$A$57:$F$57,0),FALSE) -> 0 | K62: ab 250 Mitarbeiter | L62: 5
A63: Arbeitnehmerschutz | B63: 0 | D63: =70*'Österreichische Werte'!$E$39/D35/D58 -> 0.007918284994 | E63: =250*'Österreichische Werte'!$E$39/E35/E58 -> 0.007758818349 | F63: =510*'Österreichische Werte'!$E$39/F35/F58 -> 0.007741135683 | G63: ab 50 MA voller Wert, darunter halber Wert | H63: =VLOOKUP($A63,$A$58:$F$65,MATCH($G$58,$A$57:$F$57,0),FALSE) -> 0 | O63: SVERWEIS(D22;A2:G19;VERGLEICH(D23;A1:G1;0);FALSCH)
A64: Materialkosten/Personalkosten | B64: =B18*0.98/B35/B58 -> 0.1111520625 | C64: =C18*0.98/C35/C58 -> 0.1093917914 | D64: =D18*0.98/D35/D58 -> 0.1861383249 | E64: =E18*0.98/E35/E58 -> 0.0810614513 | F64: =F18*0.98/F35/F58 -> 0.04745027638 | H64: =VLOOKUP($A64,$A$58:$F$65,MATCH($G$58,$A$57:$F$57,0),FALSE) -> 0.1111520625
A65: Gemeinkosten | B65: =B51/B58 -> 0.5242726291 | C65: =C51/C58 -> 0.7842435095 | D65: =D51/D58 -> 0.5169870613 | E65: =E51/E58 -> 0.3683730203 | F65: =F51/F58 -> 0.3995702014 | H65: =VLOOKUP($A65,$A$58:$F$65,MATCH($G$58,$A$57:$F$57,0),FALSE) -> 0.5242726291
A66: Objektleiterkosten | C66: 0.07 | D66: 0.05 | E66: 0.09 | F66: 0.07 | H66: =VLOOKUP($A66,$A$58:$F$66,MATCH($G$58,$A$57:$F$57,0),FALSE) -> 0
A71: Berechnung der Auflösungsabgabe im Gesamtschnitt der Branche (WKO vor Verhandlungen mit der Schiedskommission)
A72: Bruttolohnsumme 2014 | B72: 630000000
A73: Beschäftigte in RG 2014 | B73: 51000
A74: Fluktuation 40% | B74: 0.4
A75: Aufgelöste DV | B75: =B73*B74 -> 20400
A76: abgabenpflichtig (70%) | B76: 0.7
A77: davon abgabenpflichtig | B77: =B75*0.7 -> 14280
A78: Auflöstungsabgabe | B78: =B77*C78 -> 334.6875 | C78: ='Österreichische Werte'!B43 -> 0.0234375
A79: Auflösungsabgabe in % | B79: =B78/B72 -> 5.3125e-07

Sheet 2. Erläuterung
A1: Stundenberechnungstool gem. ÖNORM D-2050
A3: Dieses Toll soll allen Mitgliedsbetrieben, aber auch Auftraggebern und anderen die Möglichkeit geben den, für Leistungen gemäß ÖNORM D-2050 benötigten, Zeitaufwand zu errechnen.
A5: Um eine vernünftige Berechnungsbasis zu erhalten, werden vom jeweiligen Objekt folgende Daten benötigt:
A6: 1. Gebäudeplan mit Flächendaten und Bodenbelägen
A7: oder
A8: 2. Raumliste mit Fläche und Bodenbelag
A9: In der Zelle F10 wird mittels Teilergebnis immer die gefilterte Gesamtsumme angezeigt. Wenn die Gesamtfläche angezeigt werden soll, müssen immer die Filter gelöscht werden. --> "Daten", Befehl "Filter löschen"
A10: Folgende Eingaben sind vorzunehmen
A11: Objekt / Objektteil | B11: Hier kann der Objektname / - teil eingegeben werden
A12: Geschoß | B12: Hier ist das Geschoß bzw. die Ebene einzutragen um mehr Übersich zu haben
A13: Raum Nr. | B13: Hier kann die Raumnummer eingegeben werden
A14: Raumwidmung aus den Plänen | B14: Hier ist die Raumwidmung gemäß Plan einzugeben
A15: Flächendefinition | B15: Hier muss der Raum gem. Einteilung nach ÖNORM D-2050 mittels Dropdown-Menü zugeordnet werden
A16: Raum- flächen in m2 | B16: Hier ist die Fläche in m² anzugeben (Achtung keine Punkte, etc. eingeben) Bei Kommazahlen unbedingt ein Kommazeichen / einen Beistrich ( , ) verwenden!!!
A17: Bodenbelag aus Plan | B17: Hier kann der Bodenbelag aus dem Plan übernommen werden.
A18: Bodenbelagsart | B18: Hier muss der Bodenbelag gem. Einteilung nach ÖNORM D-2050 mittels Dropdown-Menü zugeordnet werden
A19: Anmerkungen | B19: Hier können noch Anmerkungen getätigt werden.
A21: Alle, für die Berechnung notwendigen Informationen werden automatisch in die Tabellenblätter "Stundenberechnung Unterhaltsreinigung" und "Stundenberechnung Sonderreinigung" übertragen.

Sheet 2. Musterraum- und Fensterbuch
T1: UH-Kategorien | U1: GR-Kategorien | W1: Fensterarten | X1: Fensterarten | Z1: nur außen | AB1: beidseitig | AC1: Auswahl
T2: 1 - Büros, Besprechungszimmer, Klassenzimmer, Unterrichtsräume/Sonderunterrichtsräume und EDV-Räume mit festen Gestühl/Stationsstützpunkt | U2: PVC | W2: Thermofenster | X2: Thermofenster | Y2: 1-seitig | Z2: 1 | AA2: gesamt | AB2: 2 | AC2: 1-seitig
T3: 2 - Toiletten, Duschen, Stationsbad | U3: Linoleum | W3: Kastenfenster | X3: Kastenfenster | Y3: 1-seitig | Z3: 1 | AA3: gesamt | AB3: 4 | AC3: gesamt
T4: 3 - Aufzüge | U4: Kautschuk | W4: Verbundfenster | X4: Verbundfenster | Y4: 1-seitig | Z4: 1 | AA4: gesamt | AB4: 4
T5: 4 - Teeküchen | U5: Steinboden | W5: Fixverglasung | X5: Fixverglasung | Y5: 1-seitig | Z5: 1 | AA5: gesamt | AB5: 2
T6: 5 - Eingangsbereiche, Fitness-, Werkstätten- und Produktionsbereiche | U6: Steinboden kalkhältig | W6: Glasfassade | X6: Glasfassade | Y6: 1-seitig | Z6: 1 | AA6: gesamt | AB6: 2
T7: 6 - Stiegenhäuser | U7: Keramische Fliesen und Platten
A8: Raumbuch - Flächenstruktur | J8: Fensterdaten | T8: 7 - Stiegenhäuser in Wohnhäusern inkl. Gänge | U8: Parkett versiegelt
A9: Teilergebnis in Zelle F10 - es wird immer die gefilterte Gesamtsumme angezeigt! | F9: Gesamtsumme | K9: Anzahl der Fenster Teilergebnis | O9: Gesamtfläche einseitig Teilergebnis | P9: Gesamtfläche alle Seiten Teilergebnis | Q9: Anzahl der Jalousien Teilergebnis | R9: Gesamtfläche Jalousien Teilergebnis | T9: 8 - Gehwegreinigung und Grünflächenreinigung in Außenanlagen | U9: Parkett geölt/gewachst
F10: =SUBTOTAL(9,F12:F2000) -> 0 | K10: =SUBTOTAL(9,K12:K2000) -> 0 | N10: Gesamtsumme m² Fenster | O10: =SUBTOTAL(9,O12:O2000) -> 0 | P10: =SUBTOTAL(9,P12:P2000) -> 0 | Q10: 0 | R10: 0 | T10: 9 - Keller, Archive, Lager | U10: Laminat
A11: Objekt / Objektteil | B11: Geschoß | C11: Raum Nr. | D11: Raumwidmung aus den Plänen | E11: Flächendefinition | F11: Raum- flächen in m2 | G11: Bodenbelag aus Plan | H11: Bodenbelagsart | I11: Anmerkungen | J11: Fenster- art (Achtung:dropdownliste) | K11: Anzahl d. Fenster bzw. fensterähnliche Fixverglasung (an der Außenwand) eintragen | L11: Breite in m eintragen | M11: Höhe in m eintragen | N11: Wie soll gereinigt werden? 1-seitig nur außen/innen oder das gesamte Fenster? Bitte auswählen! | O11: Fläche Fenster inkl. Stock u. Rahmen in m² (einseitig) | P11: Summe Fläche Glas, Stock u. Rahmen, (Formel) | Q11: Anzahl der Jalousien | R11: Fläche Jalousien rechnet sich selbst | S11: Anmerkungen zu den Fensterdaten | T11: 10 - Festsäle, Haustechnik-Bereiche | U11: Teppich
O12: =K12*L12*M12 -> 0 | P12: =IF(ISBLANK(J12)," ",IF(N12="gesamt",(O12*(VLOOKUP(J12,$X$2:$AB$6,5,))),(O12*VLOOKUP(J12,$X$2:$AB$6,3,)))) ->  | R12: =IF(Q12>0,Q12*O12,0) -> 0 | T12: 11 - Behandlungsbereiche/Ambulanzen, Untersuchungs- und Behandlungsräume, medinzinische/medizintechnische Arbeitsräume, Pflegearbeitsräume | U12: Estrich/Asphaltböden
O13: =K13*L13*M13 -> 0 | P13: =IF(ISBLANK(J13)," ",IF(N13="gesamt",(O13*(VLOOKUP(J13,$X$2:$AB$6,5,))),(O13*VLOOKUP(J13,$X$2:$AB$6,3,)))) ->  | R13: =IF(Q13>0,Q13*O13,0) -> 0 | T13: 12 - Patientenzimmer (Stationsbereich) ohne Nasszellen | U13: Sonstige
O14: =K14*L14*M14 -> 0 | R14: 0 | T14: 13 - OP-Bereich
O15: 0 | R15: 0 | T15: 14 - Intensivbereich
O16: 0 | R16: 0 | T16: 15 - Labore/medizinische Laboratorien
O17: 0 | R17: 0 | T17: 16 - Wellnessbereiche
O18: 0 | R18: 0 | T18: 17 - Schwimmbad
O19: 0 | R19: 0 | T19: 18 - Großküchenbereiche/Küchen
O20: 0 | R20: 0 | T20: 19 - Gänge, Sport- und Mehrzweckbereiche
O21: 0 | R21: 0 | T21: 20 - Speiseräume, Gruppenräume, Kindergarten, Kantine, Aufenthaltsräume
O22: 0 | R22: 0 | T22: 21 - Garderoben Umkleide- und Mannschaftsräume
O23: 0 | R23: 0 | T23: 22 - Bibliotheken
O24: 0 | R24: 0 | T24: 23 - Hotelzimmer, Bewohnerzimmer, Appartementzimmer und Gästezimmer mit Nassräumen
O25: 0 | R25: 0 | T25: 24 - Verkehrsmittel Langstrecke (zB Flugzeug, Reisezug, Reisebus)
O26: 0 | R26: 0 | T26: 25 - Verkehrsmittel Kurzstrecke (zB U-Bahn, Straßenbahn, Linienbus)
O27: 0 | R27: 0 | T27: 26 - Verkaufsflächen
O28: 0 | R28: 0 | T28: 27 - Flughafen, Bahnhöfe, Einkaufszentren, oder sonstige automatengeeignete Bodenflächen
O29: =K29*L29*M29 -> 0 | R29: =IF(Q29>0,Q29*O29,0) -> 0 | T29: 28 - Sonstige Flächen 1
O30: 0 | R30: 0 | T30: 29 - Sonstige Flächen 2
O31: 0 | R31: 0 | T31: 30 - Sonstige Flächen 3
O32: =K32*L32*M32 -> 0 | R32: =IF(Q32>0,Q32*O32,0) -> 0 | T32: 31 - Sonstige Flächen 4
O33: 0 | R33: 0 | T33: 32 - Sonstige Flächen 5
O34: 0 | R34: 0
O35: =K35*L35*M35 -> 0 | R35: =IF(Q35>0,Q35*O35,0) -> 0
O36: 0 | R36: 0
O37: =K37*L37*M37 -> 0 | R37: =IF(Q37>0,Q37*O37,0) -> 0
O38: 0 | R38: 0
O39: 0 | R39: 0
O40: 0 | R40: 0
O41: 0 | R41: 0
O42: 0 | R42: 0
O43: =K43*L43*M43 -> 0 | R43: =IF(Q43>0,Q43*O43,0) -> 0
O44: 0 | R44: 0
O45: 0 | R45: 0
O46: 0 | R46: 0
O47: 0 | R47: 0
O48: 0 | R48: 0
O49: 0 | R49: 0
O50: 0 | R50: 0
O51: 0 | R51: 0
O52: 0 | R52: 0
O53: 0 | R53: 0
O54: 0 | R54: 0
O55: 0 | R55: 0
O56: =K56*L56*M56 -> 0 | R56: =IF(Q56>0,Q56*O56,0) -> 0
O57: 0 | R57: 0
O58: 0 | R58: 0
O59: 0 | R59: 0
O60: 0 | R60: 0
O61: =K61*L61*M61 -> 0 | R61: =IF(Q61>0,Q61*O61,0) -> 0
O62: 0 | R62: 0
O63: 0 | R63: 0
O64: 0 | R64: 0
O65: 0 | R65: 0
O66: 0 | R66: 0
O67: 0 | R67: 0
O68: 0 | R68: 0
O69: 0 | R69: 0
O70: 0 | R70: 0
O71: 0 | R71: 0
O72: 0 | R72: 0
O73: 0 | R73: 0
O74: 0 | R74: 0
O75: 0 | R75: 0
O76: =K76*L76*M76 -> 0 | R76: =IF(Q76>0,Q76*O76,0) -> 0
O77: 0 | P77: =IF(ISBLANK(J77)," ",IF(N77="gesamt",(O77*(VLOOKUP(J77,$X$2:$AB$6,5,))),(O77*VLOOKUP(J77,$X$2:$AB$6,3,)))) ->  | R77: 0
O78: =K78*L78*M78 -> 0 | R78: =IF(Q78>0,Q78*O78,0) -> 0
O79: 0 | R79: 0
O80: 0 | R80: 0
O81: 0 | R81: 0
O82: 0 | R82: 0
O83: 0 | R83: 0
O84: 0 | R84: 0
O85: 0 | R85: 0
O86: 0 | R86: 0
O87: 0 | R87: =IF(Q87>0,Q87*O87,0) -> 0
O88: =K88*L88*M88 -> 0 | R88: 0
O89: 0 | R89: 0
O90: =K90*L90*M90 -> 0 | R90: =IF(Q90>0,Q90*O90,0) -> 0
O91: 0 | R91: 0
O92: 0 | R92: 0
O93: 0 | R93: 0
O94: 0 | R94: 0
O95: =K95*L95*M95 -> 0 | R95: =IF(Q95>0,Q95*O95,0) -> 0
O96: 0 | R96: 0
O97: 0 | R97: 0
O98: 0 | R98: 0
O99: 0 | R99: 0
O100: 0 | R100: 0
O101: 0 | R101: 0
O102: 0 | R102: 0
O103: 0 | R103: 0
O104: 0 | R104: 0
O105: 0 | R105: 0
O106: 0 | R106: 0
O107: 0 | R107: 0
O108: 0 | R108: 0
O109: 0 | R109: 0
O110: 0 | R110: 0
O111: 0 | R111: 0
O112: 0 | R112: 0
O113: 0 | R113: 0
O114: 0 | R114: 0
O115: 0 | R115: 0
O116: 0 | R116: 0
O117: 0 | R117: 0
O118: 0 | R118: 0
O119: 0 | R119: 0
O120: 0 | R120: 0
O121: 0 | R121: 0
O122: 0 | R122: 0
O123: 0 | R123: 0
O124: 0 | R124: 0
O125: 0 | R125: 0
O126: 0 | R126: 0
O127: 0 | R127: 0
O128: 0 | R128: 0
O129: 0 | R129: 0
O130: 0 | R130: 0
O131: 0 | R131: 0
O132: 0 | R132: 0
O133: 0 | R133: 0
O134: 0 | R134: 0
O135: 0 | R135: 0
O136: 0 | R136: 0
O137: 0 | R137: 0
O138: 0 | R138: 0
O139: 0 | R139: 0
O140: 0 | R140: 0
O141: 0 | P141: =IF(ISBLANK(J141)," ",IF(N141="gesamt",(O141*(VLOOKUP(J141,$X$2:$AB$6,5,))),(O141*VLOOKUP(J141,$X$2:$AB$6,3,)))) ->  | R141: 0
O142: 0 | R142: 0
O143: 0 | R143: 0
O144: 0 | R144: 0
O145: 0 | R145: 0
O146: 0 | R146: 0
O147: 0 | R147: 0
O148: 0 | R148: 0
O149: 0 | R149: 0
O150: 0 | R150: 0
O151: 0 | R151: 0
O152: 0 | R152: 0
O153: 0 | R153: =IF(Q153>0,Q153*O153,0) -> 0
O154: =K154*L154*M154 -> 0 | R154: 0
O155: 0 | R155: 0
O156: 0 | R156: 0
O157: 0 | R157: 0
O158: 0 | R158: 0
O159: 0 | R159: 0
O160: 0 | R160: 0
O161: 0 | R161: 0
O162: 0 | R162: 0
O163: 0 | R163: 0
O164: 0 | R164: 0
O165: 0 | R165: 0
O166: 0 | R166: 0
O167: 0 | R167: 0
O168: 0 | R168: 0
O169: 0 | R169: 0
O170: 0 | R170: 0
O171: 0 | R171: 0
O172: 0 | R172: 0
O173: 0 | R173: 0
O174: 0 | R174: 0
O175: 0 | R175: 0
O176: 0 | R176: 0
O177: 0 | R177: 0
O178: 0 | R178: 0
O179: 0 | R179: 0
O180: 0 | R180: 0
O181: 0 | R181: 0
O182: 0 | R182: 0
O183: 0 | R183: 0
O184: 0 | R184: 0
O185: 0 | R185: 0
O186: 0 | R186: 0
O187: 0 | R187: 0
O188: 0 | R188: 0
O189: 0 | R189: 0
O190: 0 | R190: 0
O191: 0 | R191: 0
O192: 0 | R192: 0
O193: 0 | R193: 0
O194: 0 | R194: 0
O195: 0 | R195: 0
O196: 0 | R196: 0
O197: 0 | R197: 0
O198: 0 | R198: 0
O199: 0 | R199: 0
O200: 0 | R200: 0
... 1800 more rows

Sheet 2. Stundenberechnung UHR
A1: Stundenkalkulation Unterhaltsreinigung
B3: Pivottabelle | C3: 1 - Büros, Besprechungszimmer, Klassenzimmer, Unterrichtsräume/Sonderunterrichtsräume und EDV-Räume mit festen Gestühl/Stationsstützpunkt | D3: 2 - Toiletten, Duschen, Stationsbad | E3: 3 - Aufzüge | F3: 4 - Teeküchen | G3: 5 - Eingangsbereiche, Fitness-, Werkstätten- und Produktionsbereiche | H3: 6 - Stiegenhäuser | I3: 7 - Stiegenhäuser in Wohnhäusern inkl. Gänge | J3: 8 - Gehwegreinigung und Grünflächenreinigung in Außenanlagen | K3: 9 - Keller, Archive, Lager | L3: 10 - Festsäle, Haustechnik-Bereiche | M3: 11 - Behandlungsbereiche/Ambulanzen, Untersuchungs- und Behandlungsräume, medinzinische/medizintechnische Arbeitsräume, Pflegearbeitsräume | N3: 12 - Patientenzimmer (Stationsbereich) ohne Nasszellen | O3: 13 - OP-Bereich | P3: 14 - Intensivbereich | Q3: 15 - Labore/medizinische Laboratorien | R3: 16 - Wellnessbereiche | S3: 17 - Schwimmbad | T3: 18 - Großküchenbereiche/Küchen | U3: 19 - Gänge, Sport- und Mehrzweckbereiche | V3: 20 - Speiseräume, Gruppenräume, Kindergarten, Kantine, Aufenthaltsräume | W3: 21 - Garderoben Umkleide- und Mannschaftsräume | X3: 22 - Bibliotheken | Y3: 23 - Hotelzimmer, Bewohnerzimmer, Appartementzimmer und Gästezimmer mit Nassräumen | Z3: 24 - Verkehrsmittel Langstrecke (zB Flugzeug, Reisezug, Reisebus) | AA3: 25 - Verkehrsmittel Kurzstrecke (zB U-Bahn, Straßenbahn, Linienbus) | AB3: 26 - Verkaufsflächen | AC3: 27 - Flughafen, Bahnhöfe, Einkaufszentren, oder sonstige automatengeeignete Bodenflächen | AD3: 28 - Sonstige Flächen 1 | AE3: 29 - Sonstige Flächen 2 | AF3: 30 - Sonstige Flächen 3 | AG3: 31 - Sonstige Flächen 4 | AH3: 32 - Sonstige Flächen 5 | AI3: Gesamtergebnis
A4: Summe von Raum-
A5: Objekt | C5: =C3 -> 1 - Büros, Besprechungszimmer, Klassenzimmer, Unterrichtsräume/Sonderunterrichtsräume und EDV-Räume mit festen Gestühl/Stationsstützpunkt | D5: =D3 -> 2 - Toiletten, Duschen, Stationsbad | E5: 3 - Aufzüge | F5: 4 - Teeküchen | G5: 5 - Eingangsbereiche, Fitness-, Werkstätten- und Produktionsbereiche | H5: 6 - Stiegenhäuser | I5: 7 - Stiegenhäuser in Wohnhäusern inkl. Gänge | J5: 8 - Gehwegreinigung und Grünflächenreinigung in Außenanlagen | K5: 9 - Keller, Archive, Lager | L5: 10 - Festsäle, Haustechnik-Bereiche | M5: 11 - Behandlungsbereiche/Ambulanzen, Untersuchungs- und Behandlungsräume, medinzinische/medizintechnische Arbeitsräume, Pflegearbeitsräume | N5: 12 - Patientenzimmer (Stationsbereich) ohne Nasszellen | O5: 13 - OP-Bereich | P5: 14 - Intensivbereich | Q5: 15 - Labore/medizinische Laboratorien | R5: 16 - Wellnessbereiche | S5: 17 - Schwimmbad | T5: 18 - Großküchenbereiche/Küchen | U5: 19 - Gänge, Sport- und Mehrzweckbereiche | V5: 20 - Speiseräume, Gruppenräume, Kindergarten, Kantine, Aufenthaltsräume | W5: 21 - Garderoben Umkleide- und Mannschaftsräume | X5: 22 - Bibliotheken | Y5: 23 - Hotelzimmer, Bewohnerzimmer, Appartementzimmer und Gästezimmer mit Nassräumen | Z5: 24 - Verkehrsmittel Langstrecke (zB Flugzeug, Reisezug, Reisebus) | AA5: 25 - Verkehrsmittel Kurzstrecke (zB U-Bahn, Straßenbahn, Linienbus) | AB5: 26 - Verkaufsflächen | AC5: 27 - Flughafen, Bahnhöfe, Einkaufszentren, oder sonstige automatengeeignete Bodenflächen | AD5: 28 - Sonstige Flächen 1 | AE5: 29 - Sonstige Flächen 2 | AF5: 30 - Sonstige Flächen 3 | AG5: 31 - Sonstige Flächen 4 | AH5: =AH3 -> 32 - Sonstige Flächen 5 | AI5: Gesamtergebnis
B6: m²-Angaben | C6: =GETPIVOTDATA("Raum- flächen in m2",$A$3,"Flächendefinition","1 - Büros, Besprechungszimmer, Klassenzimmer, Unterrichtsräume/Sonderunterrichtsräume und EDV-Räume mit festen Gestühl/Stationsstützpunkt") -> 0 | D6: =GETPIVOTDATA("Raum- flächen in m2",$A$3,"Flächendefinition","2 - Toiletten, Duschen, Stationsbad") -> 0 | E6: =GETPIVOTDATA("Raum- flächen in m2",$A$3,"Flächendefinition","3 - Aufzüge") -> 0 | F6: =GETPIVOTDATA("Raum- flächen in m2",$A$3,"Flächendefinition","4 - Teeküchen") -> 0 | G6: =GETPIVOTDATA("Raum- flächen in m2",$A$3,"Flächendefinition","5 - Eingangsbereiche, Fitness-, Werkstätten- und Produktionsbereiche") -> 0 | H6: =GETPIVOTDATA("Raum- flächen in m2",$A$3,"Flächendefinition","6 - Stiegenhäuser") -> 0 | I6: =GETPIVOTDATA("Raum- flächen in m2",$A$3,"Flächendefinition","7 - Stiegenhäuser in Wohnhäusern inkl. Gänge") -> 0 | J6: =GETPIVOTDATA("Raum- flächen in m2",$A$3,"Flächendefinition","8 - Gehwegreinigung und Grünflächenreinigung in Außenanlagen") -> 0 | K6: =GETPIVOTDATA("Raum- flächen in m2",$A$3,"Flächendefinition","9 - Keller, Archive, Lager") -> 0 | L6: =GETPIVOTDATA("Raum- flächen in m2",$A$3,"Flächendefinition","10 - Festsäle, Haustechnik-Bereiche") -> 0 | M6: =GETPIVOTDATA("Raum- flächen in m2",$A$3,"Flächendefinition","11 - Behandlungsbereiche/Ambulanzen, Untersuchungs- und Behandlungsräume, medinzinische/medizintechnische Arbeitsräume, Pflegearbeitsräume") -> 0 | N6: =GETPIVOTDATA("Raum- flächen in m2",$A$3,"Flächendefinition","12 - Patientenzimmer (Stationsbereich) ohne Nasszellen") -> 0 | O6: =GETPIVOTDATA("Raum- flächen in m2",$A$3,"Flächendefinition","13 - OP-Bereich") -> 0 | P6: =GETPIVOTDATA("Raum- flächen in m2",$A$3,"Flächendefinition","14 - Intensivbereich") -> 0 | Q6: =GETPIVOTDATA("Raum- flächen in m2",$A$3,"Flächendefinition","15 - Labore/medizinische Laboratorien") -> 0 | R6: =GETPIVOTDATA("Raum- flächen in m2",$A$3,"Flächendefinition","16 - Wellnessbereiche") -> 0 | S6: =GETPIVOTDATA("Raum- flächen in m2",$A$3,"Flächendefinition","17 - Schwimmbad") -> 0 | T6: =GETPIVOTDATA("Raum- flächen in m2",$A$3,"Flächendefinition","18 - Großküchenbereiche/Küchen") -> 0 | U6: =GETPIVOTDATA("Raum- flächen in m2",$A$3,"Flächendefinition","19 - Gänge, Sport- und Mehrzweckbereiche") -> 0 | V6: =GETPIVOTDATA("Raum- flächen in m2",$A$3,"Flächendefinition","20 - Speiseräume, Gruppenräume, Kindergarten, Kantine, Aufenthaltsräume") -> 0 | W6: =GETPIVOTDATA("Raum- flächen in m2",$A$3,"Flächendefinition","21 - Garderoben Umkleide- und Mannschaftsräume") -> 0 | X6: =GETPIVOTDATA("Raum- flächen in m2",$A$3,"Flächendefinition","22 - Bibliotheken") -> 0 | Y6: =GETPIVOTDATA("Raum- flächen in m2",$A$3,"Flächendefinition","23 - Hotelzimmer, Bewohnerzimmer, Appartementzimmer und Gästezimmer mit Nassräumen") -> 0 | Z6: =GETPIVOTDATA("Raum- flächen in m2",$A$3,"Flächendefinition","24 - Verkehrsmittel Langstrecke (zB Flugzeug, Reisezug, Reisebus)") -> 0 | AA6: =GETPIVOTDATA("Raum- flächen in m2",$A$3,"Flächendefinition","25 - Verkehrsmittel Kurzstrecke (zB U-Bahn, Straßenbahn, Linienbus)") -> 0 | AB6: =GETPIVOTDATA("Raum- flächen in m2",$A$3,"Flächendefinition","26 - Verkaufsflächen") -> 0 | AC6: =GETPIVOTDATA("Raum- flächen in m2",$A$3,"Flächendefinition","27 - Flughafen, Bahnhöfe, Einkaufszentren, oder sonstige automatengeeignete Bodenflächen") -> 0 | AD6: =GETPIVOTDATA("Raum- flächen in m2",$A$3,"Flächendefinition","28 - Sonstige Flächen 1") -> 0 | AE6: =GETPIVOTDATA("Raum- flächen in m2",$A$3,"Flächendefinition","29 - Sonstige Flächen 2") -> 0 | AF6: =GETPIVOTDATA("Raum- flächen in m2",$A$3,"Flächendefinition","30 - Sonstige Flächen 3") -> 0 | AG6: =GETPIVOTDATA("Raum- flächen in m2",$A$3,"Flächendefinition","31 - Sonstige Flächen 4") -> 0 | AH6: =GETPIVOTDATA("Raum- flächen in m2",$A$3,"Flächendefinition","32 - Sonstige Flächen 5") -> 0 | AI6: =GETPIVOTDATA("Raum- flächen in m2",$A$3) -> 0
A7: Leistung Vollreinigung - m² pro Stunde | B7: Werte gem. Ö-Norm D 2050 | C7: 180 | D7: 60 | E7: 30 | F7: 110 | G7: 200 | H7: 140 | I7: 65 | J7: 850 | K7: 250 | L7: 250 | M7: 130 | N7: 160 | O7: 20 | P7: 110 | Q7: 160 | R7: 100 | S7: 130 | T7: 100 | U7: 300 | V7: 170 | W7: 200 | X7: 200 | Y7: 60 | Z7: 50 | AA7: 50 | AB7: 350 | AC7: 10 | AD7: 10 | AE7: 10 | AF7: 10 | AG7: 10 | AH7: 10
A8: Wie oft wird eine Vollreinigung durchgeführt | B8: mittels Dropdownfeld auswählen
A9: Intervall Vollreinigung - Tage pro Monat | B9: wird automatisch bei Auswahl des Intervalls angezeigt | C9: =VLOOKUP(C8,$A$25:B37,2,FALSE) -> 0 | D9: =VLOOKUP(D8,$A$25:C37,2,FALSE) -> 0 | E9: =VLOOKUP(E8,$A$25:D37,2,FALSE) -> 0 | F9: =VLOOKUP(F8,$A$25:E37,2,FALSE) -> 0 | G9: =VLOOKUP(G8,$A$25:F37,2,FALSE) -> 0 | H9: =VLOOKUP(H8,$A$25:G37,2,FALSE) -> 0 | I9: =VLOOKUP(I8,$A$25:H37,2,FALSE) -> 0 | J9: =VLOOKUP(J8,$A$25:I37,2,FALSE) -> 0 | K9: =VLOOKUP(K8,$A$25:J37,2,FALSE) -> 0 | L9: =VLOOKUP(L8,$A$25:K37,2,FALSE) -> 0 | M9: =VLOOKUP(M8,$A$25:L37,2,FALSE) -> 0 | N9: =VLOOKUP(N8,$A$25:M37,2,FALSE) -> 0 | O9: =VLOOKUP(O8,$A$25:N37,2,FALSE) -> 0 | P9: =VLOOKUP(P8,$A$25:O37,2,FALSE) -> 0 | Q9: =VLOOKUP(Q8,$A$25:P37,2,FALSE) -> 0 | R9: =VLOOKUP(R8,$A$25:Q37,2,FALSE) -> 0 | S9: =VLOOKUP(S8,$A$25:R37,2,FALSE) -> 0 | T9: =VLOOKUP(T8,$A$25:S37,2,FALSE) -> 0 | U9: =VLOOKUP(U8,$A$25:T37,2,FALSE) -> 0 | V9: =VLOOKUP(V8,$A$25:U37,2,FALSE) -> 0 | W9: =VLOOKUP(W8,$A$25:V37,2,FALSE) -> 0 | X9: =VLOOKUP(X8,$A$25:W37,2,FALSE) -> 0 | Y9: =VLOOKUP(Y8,$A$25:X37,2,FALSE) -> 0 | Z9: =VLOOKUP(Z8,$A$25:Y37,2,FALSE) -> 0 | AA9: =VLOOKUP(AA8,$A$25:Z37,2,FALSE) -> 0 | AB9: =VLOOKUP(AB8,$A$25:AA37,2,FALSE) -> 0 | AC9: =VLOOKUP(AC8,$A$25:AB37,2,FALSE) -> 0 | AD9: =VLOOKUP(AD8,$A$25:AC37,2,FALSE) -> 0 | AE9: =VLOOKUP(AE8,$A$25:AD37,2,FALSE) -> 0 | AF9: =VLOOKUP(AF8,$A$25:AE37,2,FALSE) -> 0 | AG9: =VLOOKUP(AG8,$A$25:AF37,2,FALSE) -> 0 | AH9: =VLOOKUP(AH8,$A$25:AG37,2,FALSE) -> 0
A10: Zwischensumme Std. Hauptreinigung | C10: =IF(ISBLANK(C7),0,(C6*C9/C7)) -> 0 | D10: =IF(ISBLANK(D7),0,(D6*D9/D7)) -> 0 | E10: 0 | F10: 0 | G10: 0 | H10: 0 | I10: 0 | J10: 0 | K10: 0 | L10: 0 | M10: 0 | N10: 0 | O10: 0 | P10: 0 | Q10: 0 | R10: 0 | S10: 0 | T10: 0 | U10: 0 | V10: 0 | W10: 0 | X10: 0 | Y10: 0 | Z10: 0 | AA10: 0 | AB10: 0 | AC10: 0 | AD10: 0 | AE10: 0 | AF10: 0 | AG10: 0 | AH10: =IF(ISBLANK(AH7),0,(AH6*AH9/AH7)) -> 0
A11: Leistung Teilreinigung - m² per Stunde | B11: Werte gem. Ö-Norm D 2050 | C11: 250 | D11: 90 | E11: 45 | F11: 170 | G11: 300 | H11: 200 | I11: 140 | J11: 1000 | K11: 300 | L11: 400 | M11: 220 | N11: 200 | O11: 40 | P11: 130 | Q11: 220 | R11: 130 | S11: 180 | T11: 160 | U11: 500 | V11: 250 | W11: 270 | X11: 350 | Y11: 90 | Z11: 80 | AA11: 200 | AB11: 450 | AC11: 10 | AD11: 10 | AE11: 10 | AF11: 10 | AG11: 10 | AH11: 10
A12: Wie oft wird eine Teilreinigung durchgeführt | B12: mittels Dropdownfeld auswählen
A13: Intervall Teilreinigung - Tage per Monat | B13: wird automatisch bei Auswahl des Intervalls angezeigt | C13: =VLOOKUP(C12,$A$25:B41,2,FALSE) -> 0 | D13: =VLOOKUP(D12,$A$25:C41,2,FALSE) -> 0 | E13: =VLOOKUP(E12,$A$25:D41,2,FALSE) -> 0 | F13: =VLOOKUP(F12,$A$25:E41,2,FALSE) -> 0 | G13: =VLOOKUP(G12,$A$25:F41,2,FALSE) -> 0 | H13: =VLOOKUP(H12,$A$25:G41,2,FALSE) -> 0 | I13: =VLOOKUP(I12,$A$25:H41,2,FALSE) -> 0 | J13: =VLOOKUP(J12,$A$25:I41,2,FALSE) -> 0 | K13: =VLOOKUP(K12,$A$25:J41,2,FALSE) -> 0 | L13: =VLOOKUP(L12,$A$25:K41,2,FALSE) -> 0 | M13: =VLOOKUP(M12,$A$25:L41,2,FALSE) -> 0 | N13: =VLOOKUP(N12,$A$25:M41,2,FALSE) -> 0 | O13: =VLOOKUP(O12,$A$25:N41,2,FALSE) -> 0 | P13: =VLOOKUP(P12,$A$25:O41,2,FALSE) -> 0 | Q13: =VLOOKUP(Q12,$A$25:P41,2,FALSE) -> 0 | R13: =VLOOKUP(R12,$A$25:Q41,2,FALSE) -> 0 | S13: =VLOOKUP(S12,$A$25:R41,2,FALSE) -> 0 | T13: =VLOOKUP(T12,$A$25:S41,2,FALSE) -> 0 | U13: =VLOOKUP(U12,$A$25:T41,2,FALSE) -> 0 | V13: =VLOOKUP(V12,$A$25:U41,2,FALSE) -> 0 | W13: =VLOOKUP(W12,$A$25:V41,2,FALSE) -> 0 | X13: =VLOOKUP(X12,$A$25:W41,2,FALSE) -> 0 | Y13: =VLOOKUP(Y12,$A$25:X41,2,FALSE) -> 0 | Z13: =VLOOKUP(Z12,$A$25:Y41,2,FALSE) -> 0 | AA13: =VLOOKUP(AA12,$A$25:Z41,2,FALSE) -> 0 | AB13: =VLOOKUP(AB12,$A$25:AA41,2,FALSE) -> 0 | AC13: =VLOOKUP(AC12,$A$25:AB41,2,FALSE) -> 0 | AD13: =VLOOKUP(AD12,$A$25:AC41,2,FALSE) -> 0 | AE13: =VLOOKUP(AE12,$A$25:AD41,2,FALSE) -> 0 | AF13: =VLOOKUP(AF12,$A$25:AE41,2,FALSE) -> 0 | AG13: =VLOOKUP(AG12,$A$25:AF41,2,FALSE) -> 0 | AH13: =VLOOKUP(AH12,$A$25:AG41,2,FALSE) -> 0
A14: Zwischensumme Std. Sichtreinigung | C14: =IF(ISBLANK(C11),0,(C6*C13/C11)) -> 0 | D14: =IF(ISBLANK(D11),0,(D6*D13/D11)) -> 0 | E14: 0 | F14: 0 | G14: 0 | H14: 0 | I14: 0 | J14: 0 | K14: 0 | L14: 0 | M14: 0 | N14: 0 | O14: 0 | P14: 0 | Q14: 0 | R14: 0 | S14: 0 | T14: 0 | U14: 0 | V14: 0 | W14: 0 | X14: 0 | Y14: 0 | Z14: 0 | AA14: 0 | AB14: 0 | AC14: 0 | AD14: 0 | AE14: 0 | AF14: 0 | AG14: 0 | AH14: =IF(ISBLANK(AH11),0,(AH6*AH13/AH11)) -> 0
A15: Leistung Sichtreinigung - m² per Stunde | B15: Werte gem. Ö-Norm D 2050 | C15: 450 | D15: 120 | E15: 60 | F15: 250 | G15: 500 | H15: 300 | I15: 200 | J15: 1300 | K15: 600 | L15: 600 | M15: 330 | N15: 300 | P15: 200 | Q15: 330 | R15: 240 | S15: 300 | T15: 220 | U15: 700 | V15: 350 | W15: 350 | X15: 500 | Y15: 170 | Z15: 150 | AA15: 400 | AB15: 550 | AC15: 10 | AD15: 10 | AE15: 10 | AF15: 10 | AG15: 10 | AH15: 10
A16: Wie oft wird eine Sichtreinigung durchgeführt | B16: mittels Dropdownfeld auswählen
A17: Intervall Sichtreinigung - Tage per Monat | B17: wird automatisch bei Auswahl des Intervalls angezeigt | C17: =VLOOKUP(C16,$A$25:B45,2,FALSE) -> 0 | D17: =VLOOKUP(D16,$A$25:C45,2,FALSE) -> 0 | E17: =VLOOKUP(E16,$A$25:D45,2,FALSE) -> 0 | F17: =VLOOKUP(F16,$A$25:E45,2,FALSE) -> 0 | G17: =VLOOKUP(G16,$A$25:F45,2,FALSE) -> 0 | H17: =VLOOKUP(H16,$A$25:G45,2,FALSE) -> 0 | I17: =VLOOKUP(I16,$A$25:H45,2,FALSE) -> 0 | J17: =VLOOKUP(J16,$A$25:I45,2,FALSE) -> 0 | K17: =VLOOKUP(K16,$A$25:J45,2,FALSE) -> 0 | L17: =VLOOKUP(L16,$A$25:K45,2,FALSE) -> 0 | M17: =VLOOKUP(M16,$A$25:L45,2,FALSE) -> 0 | N17: =VLOOKUP(N16,$A$25:M45,2,FALSE) -> 0 | O17: =VLOOKUP(O16,$A$25:N45,2,FALSE) -> 0 | P17: =VLOOKUP(P16,$A$25:O45,2,FALSE) -> 0 | Q17: =VLOOKUP(Q16,$A$25:P45,2,FALSE) -> 0 | R17: =VLOOKUP(R16,$A$25:Q45,2,FALSE) -> 0 | S17: =VLOOKUP(S16,$A$25:R45,2,FALSE) -> 0 | T17: =VLOOKUP(T16,$A$25:S45,2,FALSE) -> 0 | U17: =VLOOKUP(U16,$A$25:T45,2,FALSE) -> 0 | V17: =VLOOKUP(V16,$A$25:U45,2,FALSE) -> 0 | W17: =VLOOKUP(W16,$A$25:V45,2,FALSE) -> 0 | X17: =VLOOKUP(X16,$A$25:W45,2,FALSE) -> 0 | Y17: =VLOOKUP(Y16,$A$25:X45,2,FALSE) -> 0 | Z17: =VLOOKUP(Z16,$A$25:Y45,2,FALSE) -> 0 | AA17: =VLOOKUP(AA16,$A$25:Z45,2,FALSE) -> 0 | AB17: =VLOOKUP(AB16,$A$25:AA45,2,FALSE) -> 0 | AC17: =VLOOKUP(AC16,$A$25:AB45,2,FALSE) -> 0 | AD17: =VLOOKUP(AD16,$A$25:AC45,2,FALSE) -> 0 | AE17: =VLOOKUP(AE16,$A$25:AD45,2,FALSE) -> 0 | AF17: =VLOOKUP(AF16,$A$25:AE45,2,FALSE) -> 0 | AG17: =VLOOKUP(AG16,$A$25:AF45,2,FALSE) -> 0 | AH17: =VLOOKUP(AH16,$A$25:AG45,2,FALSE) -> 0
A18: Zwischensumme Std. Sichtreinigung | C18: =IF(ISBLANK(C15),0,(C6*C17/C15)) -> 0 | D18: =IF(ISBLANK(D15),0,(D6*D17/D15)) -> 0 | E18: 0 | F18: 0 | G18: 0 | H18: 0 | I18: 0 | J18: 0 | K18: 0 | L18: 0 | M18: 0 | N18: 0 | O18: 0 | P18: 0 | Q18: 0 | R18: 0 | S18: 0 | T18: 0 | U18: 0 | V18: 0 | W18: 0 | X18: 0 | Y18: 0 | Z18: 0 | AA18: 0 | AB18: 0 | AC18: 0 | AD18: 0 | AE18: 0 | AF18: =IF(ISBLANK(AF15),0,(AF6*AF17/AF15)) -> 0 | AG18: 0 | AH18: =IF(ISBLANK(AH15),0,(AH6*AH17/AH15)) -> 0
A19: Stunden per Monat | B19: =SUM(C19:AE19) -> 0 | C19: =IF(ISBLANK(#REF!),"0",C10+C14+C18) -> 0 | D19: =IF(ISBLANK(#REF!),"0",D10+D14+D18) -> 0 | E19: =IF(ISBLANK(#REF!),"0",E10+E14+E18) -> 0 | F19: =IF(ISBLANK(#REF!),"0",F10+F14+F18) -> 0 | G19: =IF(ISBLANK(#REF!),"0",G10+G14+G18) -> 0 | H19: =IF(ISBLANK(#REF!),"0",H10+H14+H18) -> 0 | I19: =IF(ISBLANK(#REF!),"0",I10+I14+I18) -> 0 | J19: =IF(ISBLANK(#REF!),"0",J10+J14+J18) -> 0 | K19: =IF(ISBLANK(#REF!),"0",K10+K14+K18) -> 0 | L19: =IF(ISBLANK(#REF!),"0",L10+L14+L18) -> 0 | M19: =IF(ISBLANK(#REF!),"0",M10+M14+M18) -> 0 | N19: =IF(ISBLANK(#REF!),"0",N10+N14+N18) -> 0 | O19: =IF(ISBLANK(#REF!),"0",O10+O14+O18) -> 0 | P19: =IF(ISBLANK(#REF!),"0",P10+P14+P18) -> 0 | Q19: =IF(ISBLANK(#REF!),"0",Q10+Q14+Q18) -> 0 | R19: =IF(ISBLANK(#REF!),"0",R10+R14+R18) -> 0 | S19: =IF(ISBLANK(#REF!),"0",S10+S14+S18) -> 0 | T19: =IF(ISBLANK(#REF!),"0",T10+T14+T18) -> 0 | U19: =IF(ISBLANK(#REF!),"0",U10+U14+U18) -> 0 | V19: =IF(ISBLANK(#REF!),"0",V10+V14+V18) -> 0 | W19: =IF(ISBLANK(#REF!),"0",W10+W14+W18) -> 0 | X19: =IF(ISBLANK(#REF!),"0",X10+X14+X18) -> 0 | Y19: =IF(ISBLANK(#REF!),"0",Y10+Y14+Y18) -> 0 | Z19: =IF(ISBLANK(#REF!),"0",Z10+Z14+Z18) -> 0 | AA19: =IF(ISBLANK(#REF!),"0",AA10+AA14+AA18) -> 0 | AB19: =IF(ISBLANK(#REF!),"0",AB10+AB14+AB18) -> 0 | AC19: =IF(ISBLANK(#REF!),"0",AC10+AC14+AC18) -> 0 | AD19: =IF(ISBLANK(#REF!),"0",AD10+AD14+AD18) -> 0 | AE19: =IF(ISBLANK(#REF!),"0",AE10+AE14+AE18) -> 0 | AF19: =IF(ISBLANK(#REF!),"0",AF10+AF14+AF18) -> 0 | AG19: =IF(ISBLANK(#REF!),"0",AG10+AG14+AG18) -> 0 | AH19: =IF(ISBLANK(#REF!),"0",AH10+AH14+AH18) -> 0
A20: Durchschnittsstunden pro Tag | B20: =B19/21.65 -> 0 | C20: =IF(C19=0,0,C19/(MAX(C9,C13,C17))) -> 0 | D20: 0 | E20: =IF(E19=0,0,E19/(MAX(E9,E13,E17))) -> 0 | F20: =IF(F19=0,0,F19/(MAX(F9,F13,F17))) -> 0 | G20: 0 | H20: 0 | I20: 0 | J20: 0 | K20: 0 | L20: 0 | M20: 0 | N20: 0 | O20: 0 | P20: 0 | Q20: 0 | R20: 0 | S20: 0 | T20: 0 | U20: 0 | V20: 0 | W20: 0 | X20: 0 | Y20: 0 | Z20: 0 | AA20: 0 | AB20: 0 | AC20: 0 | AD20: 0 | AE20: 0 | AF20: =IF(AF19=0,0,AF19/(MAX(AF9,AF13,AF17))) -> 0 | AG20: 0 | AH20: =IF(AH19=0,0,AH19/(MAX(AH9,AH13,AH17))) -> 0
A21: Durchschnittsstunden pro Woche | B21: =B19/4.35 -> 0
A23: Reinigungstage pro Jahr
A24: LV | B24: Tage pro Monat
A25: 7 x wtl. (inkl. Sonn- u. Feiertage) | B25: 30.4375
A26: 6 x wtl. (inkl. Samstag ohne Feiertage) | B26: 26.08928571
A27: 5 x wtl. | B27: 21.75
A28: 4 x wtl. | B28: 17.32
A29: 3 x wtl. | B29: 12.99
A30: 2 x wtl. | B30: 8.7
A31: 1 x wtl. | B31: 4.35
A32: 2 x mtl. | B32: 2
A33: 1 x mtl. | B33: 1
A34: 4 x jährlich | B34: 0.3333333333
A35: 2 x jährlich | B35: 0.1666666667
A36: 1 x jährlich | B36: 0.08333333333
A37: 0 | B37: 0

Sheet 2. Einteilung Mitarbeiter UHR
A1: Einsatzplan UHR
A2: Wochenplanung | B2: Wochenstunden | C2: Organisationszeiten pro Woche | D2: Std. Ges | E2: Einteilung der Wochenstunden | L2: Std. Ges
B3: Stunden
A5: kalkulatorische Std / Woche | B5: ='2. Stundenberechnung UHR'!B21 -> 0 | E5: Montag | F5: Dienstag | G5: Mittwoch | H5: Donnerstag | I5: Freitag | J5: Samstag | K5: Sonntag
A6: Stundenrundung lt KV pro Woche
A7: Mitarbeiterliste
D8: =B8+C8 -> 0 | L8: =SUM(E8:K8) -> 0
D9: =B9+C9 -> 0 | L9: =SUM(E9:K9) -> 0
D10: 0 | L10: 0
D11: 0 | L11: 0
D12: 0 | L12: 0
D13: 0 | L13: 0
D14: 0 | L14: 0
D15: 0 | L15: 0
D16: 0 | L16: 0
D17: 0 | L17: 0
D18: 0 | L18: 0
D19: 0 | L19: 0
D20: 0 | L20: 0
A21: Kontrollsumme Wochenstunden lt. Einsatzplan | B21: =SUM(B8:B20) -> 0 | C21: =SUM(C8:C20) -> 0 | D21: =B21+C21 -> 0 | E21: =SUM(E8:E20) -> 0 | F21: =SUM(F8:F20) -> 0 | G21: 0 | H21: 0 | I21: 0 | J21: 0 | K21: 0 | L21: =SUM(E21:K21) -> 0
A22: Summe Normalstunden pro Woche für Preiskalkulation | D22: =B22+C22 -> 0 | L22: =SUM(E22:K22) -> 0
A23: Summe Stunden inkl. 50% Zuschlag für Preiskalkulation | D23: =B23+C23 -> 0 | L23: 0
A24: Summe Stunden inkl. 100% Zuschlag für Preiskalkulation | D24: 0 | L24: 0
A25: Summe Stunden inkl. 150% Zuschlag für Preiskalkulation | D25: 0 | L25: 0
A26: Gesamtsumme Stunden für Preiskalkulation | B26: =SUM(B22:B25) -> 0 | C26: =SUM(C22:C25) -> 0 | D26: 0 | L26: =SUM(L22:L25) -> 0

Sheet 2. Stundenberechnung Sonderr.
A1: Stundenkalkulation Sonderreinigung (Boden) | AK1: 1
AK2: 2
C3: Spaltenbeschriftungen | R3: PVC | S3: PVC | T3: Linoleum | U3: Linoleum | V3: Kautschuk | W3: Kautschuk | X3: Steinboden | Y3: Steinboden | Z3: Steinboden kalkhältig | AA3: Steinboden kalkhältig | AB3: Keramische Fliesen und Platten | AD3: Parkett | AE3: Parkett | AF3: Teppich | AH3: Laminat | AI3: Laminat | AK3: 3
C4: Estrich/Asphaltböden | D4: Kautschuk | E4: Keramische Fliesen und Platten | F4: Laminat | G4: Linoleum | H4: Parkett geölt/gewachst | I4: Parkett versiegelt | J4: PVC | K4: Sonstige | L4: Steinboden | M4: Steinboden kalkhältig | N4: Teppich | O4: (Leer) | P4: Gesamtergebnis | R4: Nassgrundreinigung mit 2-maliger Einpflege | S4: 18 | T4: Nassgrundreinigung mit 2-maliger Einpflege | U4: 12 | V4: Nassgrundreinigung mit Einpflege | W4: 15 | X4: Nassgrundreinigung | Y4: 25 | Z4: Nassgrundreinigung | AA4: 25 | AB4: Nassgrundreinigung | AC4: 45 | AD4: Lösemittelgrundreinigung | AE4: 45 | AF4: Shampoonieren und Extrahieren | AG4: 25 | AH4: Lösemittelgrundreinigung | AI4: 45 | AK4: 4
B5: Summe von Raum- | R5: Pflegefilmsanierung | S5: 30 | T5: Pflegefilmsanierung | U5: 30 | V5: Nassgrundreinigung mit Spraypolieren (Gumminoppen) | W5: 12 | X5: Imprägnieren | Y5: 40 | Z5: Imprägnieren | AA5: 40 | AB5: 0 | AC5: 0 | AD5: Cleanern und Polieren | AE5: 85 | AF5: Nassgrundreinigung - Sprühextrahieren | AG5: 25 | AH5: Cleanern und Abpolieren | AI5: 85 | AK5: 5
R6: Cleanern und Polieren | S6: 85 | T6: Cleanern und Polieren | U6: 85 | V6: Cleanern und Polieren | W6: 85 | X6: Nassgrundreinigung inkl. Imprägnierung | Y6: 15.38461538 | Z6: Spraykristallisation | AA6: 20 | AD6: Einpflege | AE6: 35 | AF6: Garnpadreinigung | AG6: 40 | AH6: Lösemittelgrundreinigung inkl. Cleanern bzw. Abpolieren | AI6: 29.42307692 | AK6: 6
A7: Objekt | C7: Estrich/Asphaltböden | D7: Kautschuk | E7: Keramische Fliesen und Platten | F7: Laminat | G7: Linoleum | H7: Parkett geölt/gewachst | I7: Parkett versiegelt | J7: PVC | K7: Sonstige | L7: Steinboden | M7: Steinboden kalkhältig | N7: Teppich | O7: (Leer) | P7: Gesamt | R7: Intensivreinigung | S7: 50 | T7: Intensivreinigung | U7: 50 | V7: Intensivreinigung | W7: 50 | X7: 0 | Y7: 0 | Z7: Pulverkristallisation | AA7: 15 | AD7: Pflegefilmsanierung | AE7: 65 | AF7: Trockenpulverreinigung | AG7: 25 | AH7: 0 | AI7: 0 | AK7: 7
B8: m²-Angaben | C8: =GETPIVOTDATA("Raum- flächen in m2",$B$3,"Bodenbelagsart","Estrich/Asphaltböden") -> 0 | D8: =GETPIVOTDATA("Raum- flächen in m2",$B$3,"Bodenbelagsart","Kautschuk") -> 0 | E8: =GETPIVOTDATA("Raum- flächen in m2",$B$3,"Bodenbelagsart","Keramische Fliesen und Platten") -> 0 | F8: =GETPIVOTDATA("Raum- flächen in m2",$B$3,"Bodenbelagsart","Laminat") -> 0 | G8: =GETPIVOTDATA("Raum- flächen in m2",$B$3,"Bodenbelagsart","Linoleum") -> 0 | H8: =GETPIVOTDATA("Raum- flächen in m2",$B$3,"Bodenbelagsart","Parkett geölt/gewachst") -> 0 | I8: =GETPIVOTDATA("Raum- flächen in m2",$B$3,"Bodenbelagsart","Parkett versiegelt") -> 0 | J8: =GETPIVOTDATA("Raum- flächen in m2",$B$3,"Bodenbelagsart","PVC") -> 0 | K8: =GETPIVOTDATA("Raum- flächen in m2",$B$3,"Bodenbelagsart","Sonstige") -> 0 | L8: =GETPIVOTDATA("Raum- flächen in m2",$B$3,"Bodenbelagsart","Steinboden") -> 0 | M8: =GETPIVOTDATA("Raum- flächen in m2",$B$3,"Bodenbelagsart","Steinboden kalkhältig") -> 0 | N8: =GETPIVOTDATA("Raum- flächen in m2",$B$3,"Bodenbelagsart","Teppich") -> 0 | O8: =GETPIVOTDATA("Raum- flächen in m2",$B$3,"Bodenbelagsart",) -> 0 | P8: =SUM(C8:O8) -> 0 | R8: 0 | S8: 0 | T8: 0 | U8: 0 | V8: 0 | W8: 0 | Z8: 3-stufige Sanierung mit Diamantsteinpolierpads | AA8: 5 | AD8: Lösemittelgrundreinigung inkl. Polieren | AE8: 19.6875 | AF8: Trockenschaumreinigung | AG8: 40 | AK8: 8
A9: Leistungsart | B9: mittels Dropdownfeld in der Zelle auswählen | Z9: Nassgrundreinigung inkl. Imprägnierung | AA9: 15.38461538 | AD9: Lösemittelgrundreinigung inkl. Einpflege | AE9: 19.6875 | AF9: 0 | AG9: 0 | AK9: 9
A10: Flächenleistung nach Ö-Norm D 2050 m² pro Stunde | B10: wir automatisch übernommen | C10: =VLOOKUP(C9,X4:Y7,2,) -> 0 | D10: =IF(ISBLANK(D8),0,VLOOKUP(D9,V4:W8,2,)) -> 0 | E10: =VLOOKUP(E9,AB4:AC5,2,) -> 0 | F10: =VLOOKUP(F9,AH4:AI7,2,) -> 0 | G10: =VLOOKUP(G9,T4:U8,2,) -> 0 | H10: =VLOOKUP(H9,AD4:AE10,2,) -> 0 | I10: =VLOOKUP(I9,AD4:AE10,2,) -> 0 | J10: =VLOOKUP(J9,R4:S8,2,) -> 0 | L10: =VLOOKUP(L9,X4:Y7,2,) -> 0 | M10: =VLOOKUP(M9,Z4:AA13,2,) -> 0 | N10: =VLOOKUP(N9,AF4:AG9,2,) -> 0 | Z10: Spraykristallisation inkl. Imprägnierung | AA10: 13.33333333 | AD10: 0 | AE10: 0 | AK10: 10
A11: Gesamtstunden | B11: =SUM(C11:O11) -> 0 | C11: =IF(C10=0,0,C8/C10) -> 0 | D11: 0 | E11: =IF(E10=0,0,E8/E10) -> 0 | F11: =IF(F10=0,0,F8/F10) -> 0 | G11: 0 | H11: 0 | I11: 0 | J11: 0 | K11: 0 | L11: 0 | M11: 0 | N11: 0 | O11: 0 | Z11: Pulverkristallisation inkl. Imprägnierung | AA11: 10.90909091 | AK11: 12
Z12: 3-stufige Sanierung mit Diamantsteinpolierpads inkl. Imprägnierung | AA12: 4.444444444
Z13: 0 | AA13: 0

Sheet 2. Einteilung MA Grundreinigung
A1: Einsatzplan Grundreinigung
A2: Wochenplanung | B2: Einsatzstunden | C2: Organisations- und Fahrzeiten pro Durchführung | D2: Std. Ges | E2: Einteilung der Stunden | J2: Std. Ges
B3: Stunden
A5: kalkulatorische Std | B5: ='2. Stundenberechnung Sonderr. '!B11 -> 0 | E5: Tag 1 | F5: Tag 2 | G5: Tag 3 | H5: Tag 4 | I5: Tag 5
A6: Stundenrundung lt KV (unter Berücksichtigung des gemeinsamen Transfer der MA)
A7: Mitarbeiterliste
D8: =B8+C8 -> 0 | J8: =SUM(E8:I8) -> 0
D9: =B9+C9 -> 0 | J9: =SUM(E9:I9) -> 0
D10: 0 | J10: 0
D11: 0 | J11: 0
D12: 0 | J12: 0
D13: 0 | J13: 0
D14: 0 | J14: 0
D15: 0 | J15: 0
D16: 0 | J16: 0
D17: 0 | J17: 0
D18: 0 | J18: 0
D19: 0 | J19: 0
D20: 0 | J20: 0
A21: Kontrollsumme Stunden lt. Einsatzplan | B21: =SUM(B8:B20) -> 0 | C21: =SUM(C8:C20) -> 0 | D21: =B21+C21 -> 0 | E21: =SUM(E8:E20) -> 0 | F21: =SUM(F8:F20) -> 0 | G21: 0 | H21: 0 | I21: 0 | J21: =SUM(E21:I21) -> 0
A22: Summe Normalstunden pro Woche für Preiskalkulation | D22: =B22+C22 -> 0 | J22: =SUM(E22:I22) -> 0
A23: Summe Stunden inkl. 50% Zuschlag für Preiskalkulation | D23: =B23+C23 -> 0 | J23: 0
A24: Summe Stunden inkl. 100% Zuschlag für Preiskalkulation | D24: 0 | J24: 0
A25: Summe Stunden inkl. 150% Zuschlag für Preiskalkulation | D25: 0 | J25: 0
A26: Gesamtsumme Stunden für Preiskalkulation | B26: =SUM(B22:B25) -> 0 | C26: =SUM(C22:C25) -> 0 | D26: 0 | J26: =SUM(J22:J25) -> 0

Sheet 2. Stundenberechnung Fenster
A1: Stundenberechnung Fensterreinigung | M1: Glasreinigung
M2: Fensterreinigung inkl. Stock und Rahmen
B3: Spaltenbeschriftungen | M3: 0
B4: (Leer) | C4: Thermofenster | D4: Verbundfenster | E4: Kastenfenster | F4: Glasfassade | G4: Fixverglasung | H4: Gesamtergebnis
A5: Summe von Summe Fläche | B5: 0 | H5: 0
A7: Objekt | C7: =C4 -> Thermofenster | D7: =D4 -> Verbundfenster | E7: Kastenfenster | F7: Glasfassade | G7: Fixverglasung | H7: =H4 -> Gesamtergebnis
C8: =GETPIVOTDATA("Summe Fläche Glas, Stock u. Rahmen, (Formel)",$A$3,"Fenster-","Thermofenster") -> 0 | D8: =GETPIVOTDATA("Summe Fläche Glas, Stock u. Rahmen, (Formel)",$A$3,"Fenster-","Verbundfenster") -> 0 | E8: =GETPIVOTDATA("Summe Fläche Glas, Stock u. Rahmen, (Formel)",$A$3,"Fenster-","Kastenfenster") -> 0 | F8: =GETPIVOTDATA("Summe Fläche Glas, Stock u. Rahmen, (Formel)",$A$3,"Fenster-","Glasfassade") -> 0 | G8: =GETPIVOTDATA("Summe Fläche Glas, Stock u. Rahmen, (Formel)",$A$3,"Fenster-","Fixverglasung") -> 0 | H8: =GETPIVOTDATA("Summe Fläche Glas, Stock u. Rahmen, (Formel)",$A$3) -> 0
A9: Leistungsart
A10: Flächenleistung Glas und Fensterreinigung je Kategorie
A11: Gesamtstunden | B11: =SUM(C11:G11) -> 0 | C11: =IF(C10=0,0,C8/C10) -> 0 | D11: 0 | E11: 0 | F11: 0 | G11: 0

Sheet 2. Einteilung MA Fensterr.
A1: Einsatzplan Fensterreinigung
A2: Wochenplanung | B2: Einsatzstunden | C2: Organisations- und Fahrzeiten pro Durchführung | D2: Std. Ges | E2: Einteilung der Stunden | J2: Std. Ges
B3: Stunden
A5: kalkulatorische Std | B5: ='2. Stundenberechnung Fenster'!B11 -> 0 | E5: Tag 1 | F5: Tag 2 | G5: Tag 3 | H5: Tag 4 | I5: Tag 5
A6: Stundenrundung lt KV (unter Berücksichtigung des gemeinsamen Transfer der MA)
A7: Mitarbeiterliste
D8: =B8+C8 -> 0 | J8: =SUM(E8:I8) -> 0
D9: =B9+C9 -> 0 | J9: =SUM(E9:I9) -> 0
D10: 0 | J10: 0
D11: 0 | J11: 0
D12: 0 | J12: 0
D13: 0 | J13: 0
D14: 0 | J14: 0
D15: 0 | J15: 0
D16: 0 | J16: 0
D17: 0 | J17: 0
D18: 0 | J18: 0
D19: 0 | J19: 0
D20: 0 | J20: 0
A21: Kontrollsumme Stunden lt. Einsatzplan | B21: =SUM(B8:B20) -> 0 | C21: =SUM(C8:C20) -> 0 | D21: =B21+C21 -> 0 | E21: =SUM(E8:E20) -> 0 | F21: =SUM(F8:F20) -> 0 | G21: 0 | H21: 0 | I21: 0 | J21: =SUM(E21:I21) -> 0
A22: Summe Normalstunden pro Woche für Preiskalkulation | D22: =B22+C22 -> 0 | J22: =SUM(E22:I22) -> 0
A23: Summe Stunden inkl. 50% Zuschlag für Preiskalkulation | D23: =B23+C23 -> 0 | J23: 0
A24: Summe Stunden inkl. 100% Zuschlag für Preiskalkulation | D24: 0 | J24: 0
A25: Summe Stunden inkl. 150% Zuschlag für Preiskalkulation | D25: 0 | J25: 0
A26: Gesamtsumme Stunden für Preiskalkulation | B26: =SUM(B22:B25) -> 0 | C26: =SUM(C22:C25) -> 0 | D26: 0 | J26: =SUM(J22:J25) -> 0

Sheet Summenblatt
A1: Summenblatt
A2: Unterhaltsreinigung | B2: Anzahl Wochenstunden lt. Einsatzplan | C2: Anzahl Monatsstunden für die UHR | D2: Stundensatz lt. Stundensatzkalkulationstool | E2: Monatspauschale | F2: Anzahl Monate/Durchführung | G2: Jahreskosten exkl. UST
A3: Summe Stunden mit Normalstundensatz ohne Zuschläge | B3: ='2. Einteilung Mitarbeiter UHR'!L22 -> 0 | C3: =B3*4.35 -> 0 | E3: =C3*D3 -> 0
A4: Summe Stunden mit Stundensatz inkl. 50 % Zuschlag | B4: ='2. Einteilung Mitarbeiter UHR'!L23 -> 0 | C4: =B4*4.35 -> 0 | E4: =C4*D4 -> 0
A5: Summe Stunden mit Stundensatz inkl. 100 % Zuschlag | B5: ='2. Einteilung Mitarbeiter UHR'!L24 -> 0 | C5: 0 | E5: 0
A6: Summe Stunden mit Stundensatz inkl. 150 % Zuschlag | B6: ='2. Einteilung Mitarbeiter UHR'!L25 -> 0 | C6: 0 | E6: 0
A7: Gesamtsumme | E7: =SUM(E3:E6) -> 0 | G7: =E7*F7 -> 0
A8: Grundreinigung | C8: Anzahl Gesamtstunden | D8: Stundensatz lt. Stundensatzkalkulationstool | E8: Durchführungspauschale | F8: Anzahl Durchführungen | G8: Jahreskosten exkl. UST
A9: Summe Stunden mit Normalstundensatz ohne Zuschläge | C9: ='2. Einteilung MA Grundreinigung'!J22 -> 0 | E9: =C9*D9 -> 0
A10: Summe Stunden mit Stundensatz inkl. 50 % Zuschlag | C10: ='2. Einteilung MA Grundreinigung'!J23 -> 0 | E10: =C10*D10 -> 0
A11: Summe Stunden mit Stundensatz inkl. 100 % Zuschlag | C11: ='2. Einteilung MA Grundreinigung'!J24 -> 0 | E11: 0
A12: Summe Stunden mit Stundensatz inkl. 150 % Zuschlag | C12: ='2. Einteilung MA Grundreinigung'!J25 -> 0 | E12: 0
A13: Gesamtsumme | E13: =SUM(E9:E12) -> 0 | G13: =E13*F13 -> 0
A14: Fensterreinigung | C14: Anzahl Gesamtstunden | D14: Stundensatz lt. Stundensatzkalkulationstool | E14: Durchführungspauschale | F14: Anzahl Durchführungen | G14: Jahreskosten exkl. UST
A15: Summe Stunden mit Normalstundensatz ohne Zuschläge | C15: ='2. Einteilung MA Fensterr.'!J22 -> 0 | E15: =C15*D15 -> 0
A16: Summe Stunden mit Stundensatz inkl. 50 % Zuschlag | C16: ='2. Einteilung MA Fensterr.'!J23 -> 0 | E16: =C16*D16 -> 0
A17: Summe Stunden mit Stundensatz inkl. 100 % Zuschlag | C17: ='2. Einteilung MA Fensterr.'!J24 -> 0 | E17: 0
A18: Summe Stunden mit Stundensatz inkl. 150 % Zuschlag | C18: ='2. Einteilung MA Fensterr.'!J25 -> 0 | E18: 0
A19: Gesamtsumme | E19: =SUM(E15:E18) -> 0 | G19: =E19*F19 -> 0
F21: Angebotspreis exkl. Ust | G21: =G7+G13+G19 -> 0
F22: 20 % Ust. | G22: =G21/100*20 -> 0
F23: Angebotspreis inkl. Ust | G23: =G21+G22 -> 0
